Workbook

Sheet Buttons
Z1: Photometry File Types
Z2: AIP4Win v2 - Ensemble Photometry
Z3: Mira AP

Sheet ObsvEqmt
B1: Observer & Equipment Details | F1: Red - Required, Blue - Optional
B3: Observer Details
B4: BAAVSS Observer Code | C4: ABC
B5: AAVSO Observer Code | C5: DEF
B6: Observer Name | C6: Optional Name
B8: Location Details
B9: Location Code | C9: No longer used
C10: Deg | D10: Min | E10: Sec | F10: Hem
B11: Latitude | C11: 51 | D11: 1 | E11: 0 | F11: N
B12: Longitude | C12: 1 | D12: 1 | E12: 0 | F12: W
B13: Height (m) | C13: 10
B15: Telescope Details
B16: Telescope Short Description | C16: Meade 14 LX200R on AP1200
B17: Description | C17: Meade SCT
B18: Aperture (mm) | C18: 356
B19: Focal Length (mm) | C19: 2480
B21: Camera Details
B22: Observation Method | C22: CCD
B23: Camera | C23: SXVR-H694
B24: Pixel Size (arcsec) | C24: 0.755 | D24: 0.755
B25: Gain (e-/ADU) | C25: 0.3
B26: Dark Current (e-/pixel) | C26: 0.001
B27: Readout Noise (e-/pixel) | C27: 5
B29: Spreadsheet
B30: Version | C30: =INDIRECT("'Version Log'!"&"A"&COUNTA('Version Log'!A:A)) -> 2.04
B31: Release Date | C31: 2017-12-30

Sheet Results
B1: Observation Summary | E1: Red - Required, Blue - Optional, Green - Calculated/Automated | W1: Filter | X1: Explanation
W2: CV | X2: Clear (unfiltered) V-band comp star mag (more common than CR)
B3: Chart | C3: AAVSO 12662FGO | D3: Star Aperture | E3: 10 | G3: Airmass | K3: Red Warning Limit (Used in Data Checks) | W3: CR | X3: Clear (unfiltered) R-band comp star mag
B4: Filter | C4: V | D4: Sky Annulus Inner Radius | E4: 15 | G4: Observations per Block Average | I4: 5 | K4: Max Calc - Quoted Difference | N4: 0.05 | W4: U | X4: Johnson U
B5: Photometry Time Stamp | C5: Start Exposure | D5: Sky Annulus Outer Radius | E5: 20 | G5: Julian Date Offset | I5: 2453000 | K5: Comment | W5: B | X5: Johnson B
B6: Timing Error | C6: 30 | W6: V | X6: Johnson V
W7: R | X7: Cousins R
B8: Star Data & Summary Calculations | D8: (Individual Variable Measurements to Right) | W8: I | X8: Cousins I
C9: User Input | H9: Results | L9: Data Checks (Cells Turn Red when Limit Exceeded) | R9: Individual Variable Measurements | W9: J | X9: NIR 1.2 micron
C10: Star | D10: AIP4WIN | E10: Include in | F10: Reference | H10: Average | I10: Average | J10: Std Dev | K10: Average | L10: Calc - Quoted | M10: Min | N10: Max | O10: Magnitude | R10: Date | S10: Julian | T10: Magnitude | U10: Error | W10: H | X10: NIR 1.6 micron
B11: Type | C11: Designation | D11: Star | E11: Analysis | F11: Magnitude | G11: Error | H11: Magnitude | I11: Error | J11: Magnitude | K11: Weight | L11: Difference | M11: Magnitude | N11: Magnitude | O11: Check | R11: /Time | S11: Date | W11: K | X11: NIR 2.2 micron
B12: AAVSO Results | C12: =oVariableID -> VW Vul | D12: =D13 -> Var | H12: =AVERAGE(CalcAAVSO!$BW$7:$BW$9) -> 15.38661998 | I12: =AVERAGE(CalcAAVSO!$BX$7:$BX$9) -> 0.07243767864 | J12: =STDEV(CalcAAVSO!$BW$7:$BW$9) -> 0.01312431557 | M12: =MAX(CalcAAVSO!$BW$7:$BW$9) -> 15.39807327 | N12: =MIN(CalcAAVSO!$BW$7:$BW$9) -> 15.3722989 | Q12: Average | R12: N/A | S12: N/A | T12: =Calculation!$BW5 -> 15.38672383 | U12: =Calculation!$BX5 -> 0.07241799412 | W12: VG | X12: Corrected Green Channel to Johnson V
B13: BAAVSS Results | C13: VW Vul | D13: Var | H13: =AVERAGE(Calculation!$BW$7:$BW$9) -> 15.38672383 | I13: =AVERAGE(Calculation!$BX$7:$BX$9) -> 0.07241799412 | J13: =STDEV(Calculation!$BW$7:$BW$9) -> 0.01291044324 | K13: =AVERAGE(Calculation!$AJ$7:$AJ$9) -> 0 | L13: =$H$13-$F$13 -> 15.38672383 | M13: =MAX(Calculation!$BW$7:$BW$9) -> 15.39793021 | N13: =MIN(Calculation!$BW$7:$BW$9) -> 15.3726064 | O13: =IF(ABS($L$13)>oMagTol,"WARNING","OK") -> WARNING | Q13: Std Dev | R13: N/A | S13: N/A | T13: =Calculation!$BW6 -> 0.01291044324 | U13: =Calculation!$BX6 -> 0.002107722877 | W13: TR | X13: Red Filter (tricolour)
B14: Comparison | C14: 119 | D14: C1 | E14: No | F14: 11.935 | G14: 0.008 | H14: =AVERAGE(Calculation!$BY$7:$BY$9) -> 11.96105717 | I14: =AVERAGE(Calculation!$BZ$7:$BZ$9) -> 0.006061534961 | J14: =STDEV(Calculation!$BY$7:$BY$9) -> 0.01148628169 | K14: =AVERAGE(Calculation!$AM$7:$AM$9) -> 0 | L14: =$H$14-$F$14 -> 0.02605716684 | M14: =MAX(Calculation!$BY$7:$BY$9) -> 11.9726064 | N14: =MIN(Calculation!$BY$7:$BY$9) -> 11.94963489 | O14: =IF(ABS($L$14)>oMagTol,"WARNING","OK") -> OK | R14: =Calculation!C7+Calculation!D7 -> 2013-10-05T19:58:54 | S14: =Calculation!F7 -> 3571.33257 | T14: =Calculation!$BW7 -> 15.3726064 | U14: =Calculation!$BX7 -> 0.07403651699 | W14: TG | X14: Green Filter (tricolour)
B15: Comparison | C15: 127 | D15: C2 | E15: Yes | F15: 12.665 | G15: 0.008 | H15: =AVERAGE(Calculation!$CA$7:$CA$9) -> 12.65672383 | I15: =AVERAGE(Calculation!$CB$7:$CB$9) -> 0.008179102331 | J15: =STDEV(Calculation!$CA$7:$CA$9) -> 0.006717729947 | K15: =AVERAGE(Calculation!$AP$7:$AP$9) -> 0.3662212209 | L15: =$H$15-$F$15 -> -0.008276166494 | M15: =MAX(Calculation!$CA$7:$CA$9) -> 12.66393021 | N15: =MIN(Calculation!$CA$7:$CA$9) -> 12.65063489 | O15: =IF(ABS($L$15)>oMagTol,"WARNING","OK") -> OK | R15: =Calculation!C8+Calculation!D8 -> 2013-10-05T19:59:57 | S15: =Calculation!F8 -> 3571.3333 | T15: =Calculation!$BW8 -> 15.39793021 | U15: =Calculation!$BX8 -> 0.07318283037 | W15: TB | X15: Blue Filter (tricolour)
B16: Comparison | C16: 131 | D16: C3 | E16: Yes | F16: 13.098 | G16: 0.01 | H16: =AVERAGE(Calculation!$CC$7:$CC$9) -> 13.09172383 | I16: =AVERAGE(Calculation!$CD$7:$CD$9) -> 0.01064042848 | J16: =STDEV(Calculation!$CC$7:$CC$9) -> 0.004277739591 | K16: =AVERAGE(Calculation!$AS$7:$AS$9) -> 0.2090615252 | L16: =$H$16-$F$16 -> -0.006276166494 | M16: =MAX(Calculation!$CC$7:$CC$9) -> 13.0966064 | N16: =MIN(Calculation!$CC$7:$CC$9) -> 13.08863489 | O16: =IF(ABS($L$16)>oMagTol,"WARNING","OK") -> OK | R16: =Calculation!C9+Calculation!D9 -> 2013-10-05T20:01:00 | S16: =Calculation!F9 -> 3571.33403 | T16: =Calculation!$BW9 -> 15.38963489 | U16: =Calculation!$BX9 -> 0.070034635 | W16: SU | X16: Sloan U
B17: Comparison | C17: 134 | D17: C4 | E17: Yes | F17: 13.439 | G17: 0.006 | H17: =AVERAGE(Calculation!$CE$7:$CE$9) -> 13.4583905 | I17: =AVERAGE(Calculation!$CF$7:$CF$9) -> 0.01387460417 | J17: =STDEV(Calculation!$CE$7:$CE$9) -> 0.003862749362 | K17: =AVERAGE(Calculation!$AV$7:$AV$9) -> 0.1937753963 | L17: =$H$17-$F$17 -> 0.01939050017 | M17: =MAX(Calculation!$CE$7:$CE$9) -> 13.46063489 | N17: =MIN(Calculation!$CE$7:$CE$9) -> 13.45393021 | O17: =IF(ABS($L$17)>oMagTol,"WARNING","OK") -> OK | W17: SG | X17: Sloan G
B18: Comparison | C18: 137 | D18: C5 | E18: Yes | F18: 13.74 | G18: 0.008 | H18: =AVERAGE(Calculation!$CG$7:$CG$9) -> 13.74405717 | I18: =AVERAGE(Calculation!$CH$7:$CH$9) -> 0.01730830335 | J18: =STDEV(Calculation!$CG$7:$CG$9) -> 0.01016339843 | K18: =AVERAGE(Calculation!$AY$7:$AY$9) -> 0.1172022434 | L18: =$H$18-$F$18 -> 0.004057166839 | M18: =MAX(Calculation!$CG$7:$CG$9) -> 13.75563489 | N18: =MIN(Calculation!$CG$7:$CG$9) -> 13.7366064 | O18: =IF(ABS($L$18)>oMagTol,"WARNING","OK") -> OK | W18: SR | X18: Sloan R
B19: Comparison | C19: 142 | D19: C6 | E19: Yes | F19: 14.224 | G19: 0.008 | H19: =AVERAGE(Calculation!$CI$7:$CI$9) -> 14.22205717 | I19: =AVERAGE(Calculation!$CJ$7:$CJ$9) -> 0.02579268463 | J19: =STDEV(Calculation!$CI$7:$CI$9) -> 0.01304057319 | K19: =AVERAGE(Calculation!$BB$7:$BB$9) -> 0.05665143475 | L19: =$H$19-$F$19 -> -0.001942833161 | M19: =MAX(Calculation!$CI$7:$CI$9) -> 14.23363489 | N19: =MIN(Calculation!$CI$7:$CI$9) -> 14.20793021 | O19: =IF(ABS($L$19)>oMagTol,"WARNING","OK") -> OK | W19: SI | X19: Sloan I
B20: Comparison | C20: 145 | D20: C7 | E20: Yes | F20: 14.489 | G20: 0.005 | H20: =AVERAGE(Calculation!$CK$7:$CK$9) -> 14.49905717 | I20: =AVERAGE(Calculation!$CL$7:$CL$9) -> 0.03286721323 | J20: =STDEV(Calculation!$CK$7:$CK$9) -> 0.001904970315 | K20: =AVERAGE(Calculation!$BE$7:$BE$9) -> 0.03698750415 | L20: =$H$20-$F$20 -> 0.01005716684 | M20: =MAX(Calculation!$CK$7:$CK$9) -> 14.5006064 | N20: =MIN(Calculation!$CK$7:$CK$9) -> 14.49693021 | O20: =IF(ABS($L$20)>oMagTol,"WARNING","OK") -> OK | W20: SZ | X20: Sloan Z
B21: Comparison | C21: 148 | D21: C8 | E21: No | F21: 14.83 | G21: 0.018 | H21: =AVERAGE(Calculation!$CM$7:$CM$9) -> 14.77105717 | I21: =AVERAGE(Calculation!$CN$7:$CN$9) -> 0.04202652998 | J21: =STDEV(Calculation!$CM$7:$CM$9) -> 0.03554807913 | K21: =AVERAGE(Calculation!$BH$7:$BH$9) -> 0 | L21: =$H$21-$F$21 -> -0.05894283316 | M21: =MAX(Calculation!$CM$7:$CM$9) -> 14.7986064 | N21: =MIN(Calculation!$CM$7:$CM$9) -> 14.73093021 | O21: =IF(ABS($L$21)>oMagTol,"WARNING","OK") -> WARNING
B22: Comparison | C22: 151 | D22: C9 | E22: Yes | F22: 15.112 | G22: 0.006 | H22: =AVERAGE(Calculation!$CO$7:$CO$9) -> 15.1073905 | I22: =AVERAGE(Calculation!$CP$7:$CP$9) -> 0.05636004172 | J22: =STDEV(Calculation!$CO$7:$CO$9) -> 0.02041090264 | K22: =AVERAGE(Calculation!$BK$7:$BK$9) -> 0.01255746276 | L22: =$H$22-$F$22 -> -0.004609499827 | M22: =MAX(Calculation!$CO$7:$CO$9) -> 15.12863489 | N22: =MIN(Calculation!$CO$7:$CO$9) -> 15.08793021 | O22: =IF(ABS($L$22)>oMagTol,"WARNING","OK") -> OK
B23: Comparison | C23: 154 | D23: C10 | E23: Check | F23: 15.399 | G23: 0.011 | H23: =AVERAGE(Calculation!$CQ$7:$CQ$9) -> 15.38605717 | I23: =AVERAGE(Calculation!$CR$7:$CR$9) -> 0.07225255486 | J23: =STDEV(Calculation!$CQ$7:$CQ$9) -> 0.03052525828 | K23: =AVERAGE(Calculation!$BN$7:$BN$9) -> 0.007543212441 | L23: =$H$23-$F$23 -> -0.01294283316 | M23: =MAX(Calculation!$CQ$7:$CQ$9) -> 15.41893021 | N23: =MIN(Calculation!$CQ$7:$CQ$9) -> 15.3586064 | O23: =IF(ABS($L$23)>oMagTol,"WARNING","OK") -> OK
B24: Comparison | C24: 157 | D24: C11 | E24: No | F24: 15.659 | G24: 0 | H24: =AVERAGE(Calculation!$CS$7:$CS$9) -> 15.7323905 | I24: =AVERAGE(Calculation!$CT$7:$CT$9) -> 0.09987552112 | J24: =STDEV(Calculation!$CS$7:$CS$9) -> 0.02735297764 | K24: =AVERAGE(Calculation!$BQ$7:$BQ$9) -> 0 | L24: =$H$24-$F$24 -> 0.07339050017 | M24: =MAX(Calculation!$CS$7:$CS$9) -> 15.75963489 | N24: =MIN(Calculation!$CS$7:$CS$9) -> 15.70493021 | O24: =IF(ABS($L$24)>oMagTol,"WARNING","OK") -> WARNING
B25: Comparison | C25: 168 | D25: C12 | E25: No | F25: 16.771 | G25: 0.014 | H25: =AVERAGE(Calculation!$CU$7:$CU$9) -> 16.91872383 | I25: =AVERAGE(Calculation!$CV$7:$CV$9) -> 0.2949370976 | J25: =STDEV(Calculation!$CU$7:$CU$9) -> 0.06234522694 | K25: =AVERAGE(Calculation!$BT$7:$BT$9) -> 0 | L25: =$H$25-$F$25 -> 0.1477238335 | M25: =MAX(Calculation!$CU$7:$CU$9) -> 16.9816064 | N25: =MIN(Calculation!$CU$7:$CU$9) -> 16.85693021 | O25: =IF(ABS($L$25)>oMagTol,"WARNING","OK") -> WARNING
B26: Comparison
B27: Comparison
B28: Comparison
B29: Comparison
B30: Comparison
B31: Comparison
B32: Comparison
B33: Comparison
B34: Comparison
B35: Comparison
B36: Comparison
B37: Comparison
B38: Comparison
B39: Comparison
B40: Comparison
B41: Comparison
B42: Comparison
B43: Comparison
B44: Comparison
B45: Comparison
B46: Comparison
B47: Comparison

Sheet Calculation
B1: Image Data | AH1: Intermediate Calculations | BU1: Zero Point Calculations | BW1: Final Derived Calculations | CW1: Block Average Calculations
AK2: Include | AL2: =IF(OR(Results!$E$14="Yes",Results!$E$14="Check"),1,0) -> 0 | AN2: Include | AO2: =IF(OR(Results!$E$15="Yes",Results!$E$15="Check"),1,0) -> 1 | AQ2: Include | AR2: =IF(OR(Results!$E$16="Yes",Results!$E$16="Check"),1,0) -> 1 | AT2: Include | AU2: =IF(OR(Results!$E$17="Yes",Results!$E$17="Check"),1,0) -> 1 | AW2: Include | AX2: =IF(OR(Results!$E$18="Yes",Results!$E$18="Check"),1,0) -> 1 | AZ2: Include | BA2: =IF(OR(Results!$E$19="Yes",Results!$E$19="Check"),1,0) -> 1 | BC2: Include | BD2: =IF(OR(Results!$E$20="Yes",Results!$E$20="Check"),1,0) -> 1 | BF2: Include | BG2: =IF(OR(Results!$E$21="Yes",Results!$E$21="Check"),1,0) -> 0 | BI2: Include | BJ2: =IF(OR(Results!$E$22="Yes",Results!$E$22="Check"),1,0) -> 1 | BL2: Include | BM2: =IF(OR(Results!$E$23="Yes",Results!$E$23="Check"),1,0) -> 1 | BO2: Include | BP2: =IF(OR(Results!$E$24="Yes",Results!$E$24="Check"),1,0) -> 0 | BR2: Include | BS2: =IF(OR(Results!$E$25="Yes",Results!$E$25="Check"),1,0) -> 0 | BU2: Comparisons | BV2: =SUM($AH$2:$BT$2) -> 8
G3: Exposure | H3: Var | J3: C1 | L3: C2 | N3: C3 | P3: C4 | R3: C5 | T3: C6 | V3: C7 | X3: C8 | Z3: C9 | AB3: C10 | AD3: C11 | AF3: C12 | AH3: Var | AK3: C1 | AN3: C2 | AQ3: C3 | AT3: C4 | AW3: C5 | AZ3: C6 | BC3: C7 | BF3: C8 | BI3: C9 | BL3: C10 | BO3: C11 | BR3: C12 | BW3: Var | BY3: C1 | CA3: C2 | CC3: C3 | CE3: C4 | CG3: C5 | CI3: C6 | CK3: C7 | CM3: C8 | CO3: C9 | CQ3: C10 | CS3: C11 | CU3: C12 | CW3: Var
B4: Image Name | C4: Date | D4: Time | E4: Julian Date | F4: ="JD-"&oJDOffset -> JD-2453000 | G4: Length | H4: InstMag | I4: Error | J4: InstMag | K4: Error | L4: InstMag | M4: Error | N4: InstMag | O4: Error | P4: InstMag | Q4: Error | R4: InstMag | S4: Error | T4: InstMag | U4: Error | V4: InstMag | W4: Error | X4: InstMag | Y4: Error | Z4: InstMag | AA4: Error | AB4: InstMag | AC4: Error | AD4: InstMag | AE4: Error | AF4: InstMag | AG4: Error | AH4: Magnitude | AI4: 1/SumSqErr | AJ4: Weight | AK4: Magnitude | AL4: 1/SumSqErr | AM4: Weight | AN4: Magnitude | AO4: 1/SumSqErr | AP4: Weight | AQ4: Magnitude | AR4: 1/SumSqErr | AS4: Weight | AT4: Magnitude | AU4: 1/SumSqErr | AV4: Weight | AW4: Magnitude | AX4: 1/SumSqErr | AY4: Weight | AZ4: Magnitude | BA4: 1/SumSqErr | BB4: Weight | BC4: Magnitude | BD4: 1/SumSqErr | BE4: Weight | BF4: Magnitude | BG4: 1/SumSqErr | BH4: Weight | BI4: Magnitude | BJ4: 1/SumSqErr | BK4: Weight | BL4: Magnitude | BM4: 1/SumSqErr | BN4: Weight | BO4: Magnitude | BP4: 1/SumSqErr | BQ4: Weight | BR4: Magnitude | BS4: 1/SumSqErr | BT4: Weight | BU4: Wt Mean ZP Mag | BV4: Wt ZP Std Err | BW4: Magnitude | BX4: Error | BY4: Magnitude | BZ4: Error | CA4: Magnitude | CB4: Error | CC4: Magnitude | CD4: Error | CE4: Magnitude | CF4: Error | CG4: Magnitude | CH4: Error | CI4: Magnitude | CJ4: Error | CK4: Magnitude | CL4: Error | CM4: Magnitude | CN4: Error | CO4: Magnitude | CP4: Error | CQ4: Magnitude | CR4: Error | CS4: Magnitude | CT4: Error | CU4: Magnitude | CV4: Error | CW4: Julian Date | CX4: Magnitude | CY4: Error
A5: Mean | B5: =IF(ISERROR(AVERAGE(B7:B9)),"Not Calc",AVERAGE(B7:B9)) -> Not Calc | C5: 2013-10-05 | D5: 19:59:57 | E5: 2456571.333 | F5: 3571.3333 | G5: 60 | H5: 18.336 | I5: 0.07226666667 | J5: 14.91033333 | K5: 0.003933333333 | L5: 15.606 | M5: 0.006733333333 | N5: 16.041 | O5: 0.009566666667 | P5: 16.40766667 | Q5: 0.01306666667 | R5: 16.69333333 | S5: 0.01666666667 | T5: 17.17133333 | U5: 0.02536666667 | V5: 17.44833333 | W5: 0.03253333333 | X5: 17.72033333 | Y5: 0.04176666667 | Z5: 18.05666667 | AA5: 0.05616666667 | AB5: 18.33533333 | AC5: 0.0721 | AD5: 18.68166667 | AE5: 0.09976666667 | AF5: 19.868 | AG5: 0.2949 | AH5: =IF(ISERROR(AVERAGE(AH7:AH9)),"Not Calc",AVERAGE(AH7:AH9)) -> Not Calc | AI5: Not Calc | AJ5: 0 | AK5: 0 | AL5: 0 | AM5: 0 | AN5: -2.941 | AO5: 9147.550966 | AP5: 0.3662212209 | AQ5: -2.943 | AR5: 5223.397066 | AS5: 0.2090615252 | AT5: -2.968666667 | AU5: 4844.383232 | AV5: 0.1937753963 | AW5: -2.953333333 | AX5: 2929.787917 | AY5: 0.1172022434 | AZ5: -2.947333333 | BA5: 1416.480617 | BB5: 0.05665143475 | BC5: -2.959333333 | BD5: 924.8263906 | BE5: 0.03698750415 | BF5: 0 | BG5: 0 | BH5: 0 | BI5: -2.944666667 | BJ5: 313.8473204 | BK5: 0.01255746276 | BL5: -2.936333333 | BM5: 188.654504 | BN5: =IF(ISERROR(AVERAGE(BN7:BN9)),"Not Calc",AVERAGE(BN7:BN9)) -> 0.007543212441 | BO5: 0 | BP5: 0 | BQ5: 0 | BR5: 0 | BS5: 0 | BT5: 0 | BU5: -2.949276166 | BV5: 0.004567629538 | BW5: 15.38672383 | BX5: 0.07241799412 | BY5: 11.96105717 | BZ5: 0.006061534961 | CA5: 12.65672383 | CB5: 0.008179102331 | CC5: 13.09172383 | CD5: 0.01064042848 | CE5: 13.4583905 | CF5: 0.01387460417 | CG5: 13.74405717 | CH5: 0.01730830335 | CI5: 14.22205717 | CJ5: 0.02579268463 | CK5: 14.49905717 | CL5: 0.03286721323 | CM5: 14.77105717 | CN5: 0.04202652998 | CO5: 15.1073905 | CP5: 0.05636004172 | CQ5: 15.38605717 | CR5: 0.07225255486 | CS5: 15.7323905 | CT5: =IF(ISERROR(AVERAGE(CT7:CT9)),"Not Calc",AVERAGE(CT7:CT9)) -> 0.09987552112 | CU5: 16.91872383 | CV5: 0.2949370976 | CW5: Not Calc | CX5: Not Calc | CY5: Not Calc
A6: StDev | B6: =IF(ISERROR(STDEV(B7:B9)),"Not Calc",STDEV(B7:B9)) -> Not Calc | C6: 00:00:00 | D6: 00:01:03 | E6: 0.0007299999706 | F6: 0.0007299999706 | G6: 0 | H6: 0.0305122926 | I6: 0.002173323108 | J6: 0.04805552344 | K6: 0.0001527525232 | L6: 0.03994996871 | M6: 0.0002081665999 | N6: 0.0405092582 | O6: 0.0003511884584 | P6: 0.03652852766 | Q6: 0.0004509249753 | R6: 0.02702468008 | S6: 0.0005507570547 | T6: 0.03347138081 | U6: 0.0009291573243 | V6: 0.03700450423 | W6: 0.00105039675 | X6: 0.05460158728 | Y6: 0.002281081615 | Z6: 0.02886751346 | AA6: 0.001514375559 | AB6: 0.04005413004 | AC6: 0.003064310689 | AD6: 0.03139001965 | AE6: 0.003329164059 | AF6: 0.08545759182 | AG6: 0.0251149358 | AH6: =IF(ISERROR(STDEV(AH7:AH9)),"Not Calc",STDEV(AH7:AH9)) -> Not Calc | AI6: Not Calc | AJ6: 0 | AK6: 0 | AL6: 0 | AM6: 0 | AN6: 0.03994996871 | AO6: 235.4914226 | AP6: 0.006050416221 | AQ6: 0.0405092582 | AR6: 183.6175594 | AS6: 0.001210716503 | AT6: 0.03652852766 | AU6: 277.3478839 | AV6: 0.003147323689 | AW6: 0.02702468008 | AX6: 157.9024497 | AY6: 0.001520662326 | AZ6: 0.03347138081 | BA6: 92.58847782 | BB6: 0.001724289067 | BC6: 0.03700450423 | BD6: 58.23068175 | BE6: 0.0008415000486 | BF6: 0 | BG6: 0 | BH6: 0 | BI6: 0.02886751346 | BJ6: 16.37895828 | BK6: 0.0003155619922 | BL6: 0.04005413004 | BM6: 16.17666435 | BN6: =IF(ISERROR(STDEV(BN7:BN9)),"Not Calc",STDEV(BN7:BN9)) -> 0.0004106347 | BO6: 0 | BP6: 0 | BQ6: 0 | BR6: 0 | BS6: 0 | BT6: 0 | BU6: 0.03659430687 | BV6: 0.001125364328 | BW6: 0.01291044324 | BX6: 0.002107722877 | BY6: 0.01148628169 | BZ6: 0.0008234046025 | CA6: 0.006717729947 | CB6: 0.0005145210008 | CC6: 0.004277739591 | CD6: 0.0003717888322 | CE6: 0.003862749362 | CF6: 0.0003381461603 | CG6: 0.01016339843 | CH6: 0.0004065180312 | CI6: 0.01304057319 | CJ6: 0.0008558234493 | CK6: 0.001904970315 | CL6: 0.0009543303638 | CM6: 0.03554807913 | CN6: 0.002258865086 | CO6: 0.02041090264 | CP6: 0.001488237497 | CQ6: 0.03052525828 | CR6: 0.002986432463 | CS6: 0.02735297764 | CT6: =IF(ISERROR(STDEV(CT7:CT9)),"Not Calc",STDEV(CT7:CT9)) -> 0.003323661393 | CU6: 0.06234522694 | CV6: 0.02510973962 | CW6: Not Calc | CX6: Not Calc | CY6: Not Calc
B7: Autosave Image -001V-DF.fit | C7: 2013-10-05 | D7: 19:58:54 | E7: 2456571.333 | F7: =E7-oJDOffset -> 3571.33257 | G7: 60 | H7: 18.357 | I7: 0.0739 | J7: 14.957 | K7: 0.0041 | L7: 15.64 | M7: 0.0069 | N7: 16.081 | O7: 0.0099 | P7: 16.445 | Q7: 0.0135 | R7: 16.721 | S7: 0.0172 | T7: 17.209 | U7: 0.0264 | V7: 17.485 | W7: 0.0336 | X7: 17.783 | Y7: 0.0444 | Z7: 18.09 | AA7: 0.0579 | AB7: 18.343 | AC7: 0.0734 | AD7: 18.717 | AE7: 0.1036 | AF7: 19.966 | AG7: 0.3239 | AH7: Blank | AI7: Blank | AJ7: 0 | AK7: =(Results!$F$14-$J7)*$AL$2 -> 0 | AL7: =(1/SUMSQ(Results!$G$14,$K7))*$AL$2 -> 0 | AM7: =$AL7/SUM($AL7,$AO7,$AR7,$AU7,$AX7,$BA7,$BD7,$BG7,$BJ7,$BM7,$BP7,$BS7) -> 0 | AN7: =(Results!$F$15-$L7)*$AO$2 -> -2.975 | AO7: =(1/SUMSQ(Results!$G$15,$M7))*$AO$2 -> 8959.77063 | AP7: =$AO7/SUM($AL7,$AO7,$AR7,$AU7,$AX7,$BA7,$BD7,$BG7,$BJ7,$BM7,$BP7,$BS7) -> 0.3728840061 | AQ7: =(Results!$F$16-$N7)*$AR$2 -> -2.983 | AR7: =(1/SUMSQ(Results!$G$16,$O7))*$AR$2 -> 5050.249987 | AS7: =$AR7/SUM($AL7,$AO7,$AR7,$AU7,$AX7,$BA7,$BD7,$BG7,$BJ7,$BM7,$BP7,$BS7) -> 0.2101792027 | AT7: =(Results!$F$17-$P7)*$AU$2 -> -3.006 | AU7: =(1/SUMSQ(Results!$G$17,$Q7))*$AU$2 -> 4581.901489 | AV7: =$AU7/SUM($AL7,$AO7,$AR7,$AU7,$AX7,$BA7,$BD7,$BG7,$BJ7,$BM7,$BP7,$BS7) -> 0.1906876697 | AW7: =(Results!$F$18-$R7)*$AX$2 -> -2.981 | AX7: =(1/SUMSQ(Results!$G$18,$S7))*$AX$2 -> 2779.012895 | AY7: =$AX7/SUM($AL7,$AO7,$AR7,$AU7,$AX7,$BA7,$BD7,$BG7,$BJ7,$BM7,$BP7,$BS7) -> 0.1156558024 | AZ7: =(Results!$F$19-$T7)*$BA$2 -> -2.985 | BA7: =(1/SUMSQ(Results!$G$19,$U7))*$BA$2 -> 1314.129521 | BB7: =$BA7/SUM($AL7,$AO7,$AR7,$AU7,$AX7,$BA7,$BD7,$BG7,$BJ7,$BM7,$BP7,$BS7) -> 0.05469089561 | BC7: =(Results!$F$20-$V7)*$BD$2 -> -2.996 | BD7: =(1/SUMSQ(Results!$G$20,$W7))*$BD$2 -> 866.581164 | BE7: =$BD7/SUM($AL7,$AO7,$AR7,$AU7,$AX7,$BA7,$BD7,$BG7,$BJ7,$BM7,$BP7,$BS7) -> 0.03606501432 | BF7: =(Results!$F$21-$X7)*$BG$2 -> 0 | BG7: =(1/SUMSQ(Results!$G$21,$Y7))*$BG$2 -> 0 | BH7: =$BG7/SUM($AL7,$AO7,$AR7,$AU7,$AX7,$BA7,$BD7,$BG7,$BJ7,$BM7,$BP7,$BS7) -> 0 | BI7: =(Results!$F$22-$Z7)*$BJ$2 -> -2.978 | BJ7: =(1/SUMSQ(Results!$G$22,$AA7))*$BJ$2 -> 295.1236716 | BK7: =$BJ7/SUM($AL7,$AO7,$AR7,$AU7,$AX7,$BA7,$BD7,$BG7,$BJ7,$BM7,$BP7,$BS7) -> 0.01228233417 | BL7: =(Results!$F$23-$AB7)*$BM$2 -> -2.944 | BM7: =(1/SUMSQ(Results!$G$23,$AC7))*$BM$2 -> 181.5356463 | BN7: =$BM7/SUM($AL7,$AO7,$AR7,$AU7,$AX7,$BA7,$BD7,$BG7,$BJ7,$BM7,$BP7,$BS7) -> 0.007555074996 | BO7: =(Results!$F$24-$AD7)*$BP$2 -> 0 | BP7: =(1/SUMSQ(Results!$G$24,$AE7))*$BP$2 -> 0 | BQ7: =$BP7/SUM($AL7,$AO7,$AR7,$AU7,$AX7,$BA7,$BD7,$BG7,$BJ7,$BM7,$BP7,$BS7) -> 0 | BR7: =(Results!$F$25-$AF7)*$BS$2 -> 0 | BS7: =(1/SUMSQ(Results!$G$25,$AG7))*$BS$2 -> 0 | BT7: =$BS7/SUM($AL7,$AO7,$AR7,$AU7,$AX7,$BA7,$BD7,$BG7,$BJ7,$BM7,$BP7,$BS7) -> 0 | BU7: =SUM($AK7*$AM7,$AN7*$AP7,$AQ7*$AS7,$AT7*$AV7,$AW7*$AY7,$AZ7*$BB7,$BC7*$BE7,$BF7*$BH7,$BI7*$BK7,$BL7*$BN7,$BO7*$BQ7,$BR7*$BT7) -> -2.9843936 | BV7: =IF($BV$2>1,SQRT(SUM((($AK7-$BU7)^2)*$AM7,(($AN7-$BU7)^2)*$AP7,(($AQ7-$BU7)^2)*$AS7,(($AT7-$BU7)^2)*$AV7,(($AW7-$BU7)^2)*$AY7,(($AZ7-$BU7)^2)*$BB7,(($BC7-$BU7)^2)*$BE7,(($BF7-$BU7)^2)*$BH7,(($BI7-$BU7)^2)*$BK7,(($BL7-$BU7)^2)*$BN7,(($BO7-$BU7)^2)*$BQ7,(($BR7-$BU7)^2)*$BT7)/(IF($BV$2=1,1,$BV$2-1))),1/SQRT(SUM($AL7,$AO7,$AR7,$AU7,$AX7,$BA7,$BD7,$BG7,$BJ7,$BM7,$BP7,$BS7))) -> 0.004493979051 | BW7: =$H7+$BU7 -> 15.3726064 | BX7: =SQRT(SUMSQ($I7,$BV7)) -> 0.07403651699 | BY7: =$J7+$BU7 -> 11.9726064 | BZ7: =SQRT(SUMSQ($K7,$BV7)) -> 0.00608324319 | CA7: =$L7+$BU7 -> 12.6556064 | CB7: =SQRT(SUMSQ($M7,$BV7)) -> 0.008234430625 | CC7: =$N7+$BU7 -> 13.0966064 | CD7: =SQRT(SUMSQ($O7,$BV7)) -> 0.01087225127 | CE7: =$P7+$BU7 -> 13.4606064 | CF7: =SQRT(SUMSQ($Q7,$BV7)) -> 0.01422834663 | CG7: =$R7+$BU7 -> 13.7366064 | CH7: =SQRT(SUMSQ($S7,$BV7)) -> 0.0177773971 | CI7: =$T7+$BU7 -> 14.2246064 | CJ7: =SQRT(SUMSQ($U7,$BV7)) -> 0.02677976564 | CK7: =$V7+$BU7 -> 14.5006064 | CL7: =SQRT(SUMSQ($W7,$BV7)) -> 0.03389920128 | CM7: =$X7+$BU7 -> 14.7986064 | CN7: =SQRT(SUMSQ($Y7,$BV7)) -> 0.0446268512 | CO7: =$Z7+$BU7 -> 15.1056064 | CP7: =SQRT(SUMSQ($AA7,$BV7)) -> 0.05807414096 | CQ7: =$AB7+$BU7 -> 15.3586064 | CR7: =SQRT(SUMSQ($AC7,$BV7)) -> 0.07353744521 | CS7: =$AD7+$BU7 -> 15.7326064 | CT7: =SQRT(SUMSQ($AE7,$BV7)) -> 0.1036974245 | CU7: =$AF7+$BU7 -> 16.9816064 | CV7: =SQRT(SUMSQ($AG7,$BV7)) -> 0.3239311746 | CW7: =IF(MOD(ROW($CW7)-7,oBlockAvg)=0,AVERAGE(INDIRECT(ADDRESS((INT((ROW($CW7)-7)/oBlockAvg)*oBlockAvg)+7,COLUMN(Calculation!JDGraph))&":"&ADDRESS(((INT((ROW($CW7)-7)/oBlockAvg)+1)*oBlockAvg)+6,COLUMN(Calculation!JDGraph)))),#N/A) -> 3571.3333 | CX7: =IF(MOD(ROW($CX7)-7,oBlockAvg)=0,AVERAGE(INDIRECT(ADDRESS((INT((ROW($CX7)-7)/oBlockAvg)*oBlockAvg)+7,75)&":"&ADDRESS(((INT((ROW($CX7)-7)/oBlockAvg)+1)*oBlockAvg)+6,75))),#N/A) -> 15.38672383 | CY7: =IF(MOD(ROW($CY7)-7,oBlockAvg)=0,STDEV(INDIRECT(ADDRESS((INT((ROW($CY7)-7)/oBlockAvg)*oBlockAvg)+7,75)&":"&ADDRESS(((INT((ROW($CY7)-7)/oBlockAvg)+1)*oBlockAvg)+6,75)))/SQRT(COUNT(INDIRECT(ADDRESS((INT((ROW($CY7)-7)/oBlockAvg)*oBlockAvg)+7,75)&":"&ADDRESS(((INT((ROW($CY7)-7)/oBlockAvg)+1)*oBlockAvg)+6,75)))),#N/A) -> 0.007453847878
B8: Autosave Image -002V-DF.fit | C8: 2013-10-05 | D8: 19:59:57 | E8: 2456571.333 | F8: =E8-oJDOffset -> 3571.3333 | G8: 60 | H8: 18.35 | I8: 0.0731 | J8: 14.913 | K8: 0.0039 | L8: 15.616 | M8: 0.0068 | N8: 16.042 | O8: 0.0096 | P8: 16.406 | Q8: 0.0131 | R8: 16.692 | S8: 0.0167 | T8: 17.16 | U8: 0.0251 | V8: 17.449 | W8: 0.0325 | X8: 17.683 | Y8: 0.0404 | Z8: 18.04 | AA8: 0.0555 | AB8: 18.371 | AC8: 0.0743 | AD8: 18.657 | AE8: 0.0976 | AF8: 19.809 | AG8: 0.2805 | AH8: Blank | AI8: Blank | AJ8: 0 | AK8: =(Results!$F$14-$J8)*$AL$2 -> 0 | AL8: =(1/SUMSQ(Results!$G$14,$K8))*$AL$2 -> 0 | AM8: =$AL8/SUM($AL8,$AO8,$AR8,$AU8,$AX8,$BA8,$BD8,$BG8,$BJ8,$BM8,$BP8,$BS8) -> 0 | AN8: =(Results!$F$15-$L8)*$AO$2 -> -2.951 | AO8: =(1/SUMSQ(Results!$G$15,$M8))*$AO$2 -> 9071.117562 | AP8: =$AO8/SUM($AL8,$AO8,$AR8,$AU8,$AX8,$BA8,$BD8,$BG8,$BJ8,$BM8,$BP8,$BS8) -> 0.364709995 | AQ8: =(Results!$F$16-$N8)*$AR$2 -> -2.944 | AR8: =(1/SUMSQ(Results!$G$16,$O8))*$AR$2 -> 5203.996669 | AS8: =$AR8/SUM($AL8,$AO8,$AR8,$AU8,$AX8,$BA8,$BD8,$BG8,$BJ8,$BM8,$BP8,$BS8) -> 0.2092299638 | AT8: =(Results!$F$17-$P8)*$AU$2 -> -2.967 | AU8: =(1/SUMSQ(Results!$G$17,$Q8))*$AU$2 -> 4816.723665 | AV8: =$AU8/SUM($AL8,$AO8,$AR8,$AU8,$AX8,$BA8,$BD8,$BG8,$BJ8,$BM8,$BP8,$BS8) -> 0.1936594088 | AW8: =(Results!$F$18-$R8)*$AX$2 -> -2.952 | AX8: =(1/SUMSQ(Results!$G$18,$S8))*$AX$2 -> 2916.38718 | AY8: =$AX8/SUM($AL8,$AO8,$AR8,$AU8,$AX8,$BA8,$BD8,$BG8,$BJ8,$BM8,$BP8,$BS8) -> 0.1172551834 | AZ8: =(Results!$F$19-$T8)*$BA$2 -> -2.936 | BA8: =(1/SUMSQ(Results!$G$19,$U8))*$BA$2 -> 1440.901428 | BB8: =$BA8/SUM($AL8,$AO8,$AR8,$AU8,$AX8,$BA8,$BD8,$BG8,$BJ8,$BM8,$BP8,$BS8) -> 0.05793234946 | BC8: =(Results!$F$20-$V8)*$BD$2 -> -2.96 | BD8: =(1/SUMSQ(Results!$G$20,$W8))*$BD$2 -> 924.8554913 | BE8: =$BD8/SUM($AL8,$AO8,$AR8,$AU8,$AX8,$BA8,$BD8,$BG8,$BJ8,$BM8,$BP8,$BS8) -> 0.03718439755 | BF8: =(Results!$F$21-$X8)*$BG$2 -> 0 | BG8: =(1/SUMSQ(Results!$G$21,$Y8))*$BG$2 -> 0 | BH8: =$BG8/SUM($AL8,$AO8,$AR8,$AU8,$AX8,$BA8,$BD8,$BG8,$BJ8,$BM8,$BP8,$BS8) -> 0 | BI8: =(Results!$F$22-$Z8)*$BJ$2 -> -2.928 | BJ8: =(1/SUMSQ(Results!$G$22,$AA8))*$BJ$2 -> 320.8985158 | BK8: =$BJ8/SUM($AL8,$AO8,$AR8,$AU8,$AX8,$BA8,$BD8,$BG8,$BJ8,$BM8,$BP8,$BS8) -> 0.01290192695 | BL8: =(Results!$F$23-$AB8)*$BM$2 -> -2.972 | BM8: =(1/SUMSQ(Results!$G$23,$AC8))*$BM$2 -> 177.2581357 | BN8: =$BM8/SUM($AL8,$AO8,$AR8,$AU8,$AX8,$BA8,$BD8,$BG8,$BJ8,$BM8,$BP8,$BS8) -> 0.007126774992 | BO8: =(Results!$F$24-$AD8)*$BP$2 -> 0 | BP8: =(1/SUMSQ(Results!$G$24,$AE8))*$BP$2 -> 0 | BQ8: =$BP8/SUM($AL8,$AO8,$AR8,$AU8,$AX8,$BA8,$BD8,$BG8,$BJ8,$BM8,$BP8,$BS8) -> 0 | BR8: =(Results!$F$25-$AF8)*$BS$2 -> 0 | BS8: =(1/SUMSQ(Results!$G$25,$AG8))*$BS$2 -> 0 | BT8: =$BS8/SUM($AL8,$AO8,$AR8,$AU8,$AX8,$BA8,$BD8,$BG8,$BJ8,$BM8,$BP8,$BS8) -> 0 | BU8: =SUM($AK8*$AM8,$AN8*$AP8,$AQ8*$AS8,$AT8*$AV8,$AW8*$AY8,$AZ8*$BB8,$BC8*$BE8,$BF8*$BH8,$BI8*$BK8,$BL8*$BN8,$BO8*$BQ8,$BR8*$BT8) -> -2.952069788 | BV8: =IF($BV$2>1,SQRT(SUM((($AK8-$BU8)^2)*$AM8,(($AN8-$BU8)^2)*$AP8,(($AQ8-$BU8)^2)*$AS8,(($AT8-$BU8)^2)*$AV8,(($AW8-$BU8)^2)*$AY8,(($AZ8-$BU8)^2)*$BB8,(($BC8-$BU8)^2)*$BE8,(($BF8-$BU8)^2)*$BH8,(($BI8-$BU8)^2)*$BK8,(($BL8-$BU8)^2)*$BN8,(($BO8-$BU8)^2)*$BQ8,(($BR8-$BU8)^2)*$BT8)/(IF($BV$2=1,1,$BV$2-1))),1/SQRT(SUM($AL8,$AO8,$AR8,$AU8,$AX8,$BA8,$BD8,$BG8,$BJ8,$BM8,$BP8,$BS8))) -> 0.003480899454 | BW8: =$H8+$BU8 -> 15.39793021 | BX8: =SQRT(SUMSQ($I8,$BV8)) -> 0.07318283037 | BY8: =$J8+$BU8 -> 11.96093021 | BZ8: =SQRT(SUMSQ($K8,$BV8)) -> 0.00522749089 | CA8: =$L8+$BU8 -> 12.66393021 | CB8: =SQRT(SUMSQ($M8,$BV8)) -> 0.007639153161 | CC8: =$N8+$BU8 -> 13.08993021 | CD8: =SQRT(SUMSQ($O8,$BV8)) -> 0.01021159444 | CE8: =$P8+$BU8 -> 13.45393021 | CF8: =SQRT(SUMSQ($Q8,$BV8)) -> 0.01355458081 | CG8: =$R8+$BU8 -> 13.73993021 | CH8: =SQRT(SUMSQ($S8,$BV8)) -> 0.01705891735 | CI8: =$T8+$BU8 -> 14.20793021 | CJ8: =SQRT(SUMSQ($U8,$BV8)) -> 0.02534021825 | CK8: =$V8+$BU8 -> 14.49693021 | CL8: =SQRT(SUMSQ($W8,$BV8)) -> 0.03268587862 | CM8: =$X8+$BU8 -> 14.73093021 | CN8: =SQRT(SUMSQ($Y8,$BV8)) -> 0.04054968139 | CO8: =$Z8+$BU8 -> 15.08793021 | CP8: =SQRT(SUMSQ($AA8,$BV8)) -> 0.05560905197 | CQ8: =$AB8+$BU8 -> 15.41893021 | CR8: =SQRT(SUMSQ($AC8,$BV8)) -> 0.07438149408 | CS8: =$AD8+$BU8 -> 15.70493021 | CT8: =SQRT(SUMSQ($AE8,$BV8)) -> 0.09766205333 | CU8: =$AF8+$BU8 -> 16.85693021 | CV8: =SQRT(SUMSQ($AG8,$BV8)) -> 0.2805215975 | CW8: =IF(MOD(ROW($CW8)-7,oBlockAvg)=0,AVERAGE(INDIRECT(ADDRESS((INT((ROW($CW8)-7)/oBlockAvg)*oBlockAvg)+7,COLUMN(Calculation!JDGraph))&":"&ADDRESS(((INT((ROW($CW8)-7)/oBlockAvg)+1)*oBlockAvg)+6,COLUMN(Calculation!JDGraph)))),#N/A) ->  | CX8: =IF(MOD(ROW($CX8)-7,oBlockAvg)=0,AVERAGE(INDIRECT(ADDRESS((INT((ROW($CX8)-7)/oBlockAvg)*oBlockAvg)+7,75)&":"&ADDRESS(((INT((ROW($CX8)-7)/oBlockAvg)+1)*oBlockAvg)+6,75))),#N/A) ->  | CY8: =IF(MOD(ROW($CY8)-7,oBlockAvg)=0,STDEV(INDIRECT(ADDRESS((INT((ROW($CY8)-7)/oBlockAvg)*oBlockAvg)+7,75)&":"&ADDRESS(((INT((ROW($CY8)-7)/oBlockAvg)+1)*oBlockAvg)+6,75)))/SQRT(COUNT(INDIRECT(ADDRESS((INT((ROW($CY8)-7)/oBlockAvg)*oBlockAvg)+7,75)&":"&ADDRESS(((INT((ROW($CY8)-7)/oBlockAvg)+1)*oBlockAvg)+6,75)))),#N/A) -> 
B9: Autosave Image -003V-DF.fit | C9: 2013-10-05 | D9: 20:01:00 | E9: 2456571.334 | F9: =E9-oJDOffset -> 3571.33403 | G9: 60 | H9: 18.301 | I9: 0.0698 | J9: 14.861 | K9: 0.0038 | L9: 15.562 | M9: 0.0065 | N9: 16 | O9: 0.0092 | P9: 16.372 | Q9: 0.0126 | R9: 16.667 | S9: 0.0161 | T9: 17.145 | U9: 0.0246 | V9: 17.411 | W9: 0.0315 | X9: 17.695 | Y9: 0.0405 | Z9: 18.04 | AA9: 0.0551 | AB9: 18.292 | AC9: 0.0686 | AD9: 18.671 | AE9: 0.0981 | AF9: 19.829 | AG9: 0.2803 | AH9: Blank | AI9: Blank | AJ9: 0 | AK9: =(Results!$F$14-$J9)*$AL$2 -> 0 | AL9: =(1/SUMSQ(Results!$G$14,$K9))*$AL$2 -> 0 | AM9: 0 | AN9: =(Results!$F$15-$L9)*$AO$2 -> -2.897 | AO9: =(1/SUMSQ(Results!$G$15,$M9))*$AO$2 -> 9411.764706 | AP9: 0.3610696617 | AQ9: =(Results!$F$16-$N9)*$AR$2 -> -2.902 | AR9: =(1/SUMSQ(Results!$G$16,$O9))*$AR$2 -> 5415.944541 | AS9: 0.2077754092 | AT9: =(Results!$F$17-$P9)*$AU$2 -> -2.933 | AU9: =(1/SUMSQ(Results!$G$17,$Q9))*$AU$2 -> 5134.524543 | AV9: 0.1969791105 | AW9: =(Results!$F$18-$R9)*$AX$2 -> -2.927 | AX9: =(1/SUMSQ(Results!$G$18,$S9))*$AX$2 -> 3093.963677 | AY9: 0.1186957444 | AZ9: =(Results!$F$19-$T9)*$BA$2 -> -2.921 | BA9: =(1/SUMSQ(Results!$G$19,$U9))*$BA$2 -> 1494.410903 | BB9: 0.05733105917 | BC9: =(Results!$F$20-$V9)*$BD$2 -> -2.922 | BD9: =(1/SUMSQ(Results!$G$20,$W9))*$BD$2 -> 983.0425166 | BE9: 0.03771310057 | BF9: =(Results!$F$21-$X9)*$BG$2 -> 0 | BG9: =(1/SUMSQ(Results!$G$21,$Y9))*$BG$2 -> 0 | BH9: 0 | BI9: =(Results!$F$22-$Z9)*$BJ$2 -> -2.928 | BJ9: =(1/SUMSQ(Results!$G$22,$AA9))*$BJ$2 -> 325.5197737 | BK9: 0.01248812717 | BL9: =(Results!$F$23-$AB9)*$BM$2 -> -2.893 | BM9: =(1/SUMSQ(Results!$G$23,$AC9))*$BM$2 -> 207.16973 | BN9: 0.007947787335 | BO9: =(Results!$F$24-$AD9)*$BP$2 -> 0 | BP9: =(1/SUMSQ(Results!$G$24,$AE9))*$BP$2 -> 0 | BQ9: 0 | BR9: =(Results!$F$25-$AF9)*$BS$2 -> 0 | BS9: =(1/SUMSQ(Results!$G$25,$AG9))*$BS$2 -> 0 | BT9: 0 | BU9: -2.911365111 | BV9: 0.005728010109 | BW9: 15.38963489 | BX9: 0.070034635 | BY9: 11.94963489 | BZ9: 0.006873870803 | CA9: 12.65063489 | CB9: 0.008663723207 | CC9: 13.08863489 | CD9: 0.01083743973 | CE9: 13.46063489 | CF9: 0.01384088508 | CG9: 13.75563489 | CH9: 0.01708859561 | CI9: 14.23363489 | CJ9: 0.02525806999 | CK9: 14.49963489 | CL9: 0.03201655977 | CM9: 14.78363489 | CN9: 0.04090305734 | CO9: 15.12863489 | CP9: 0.05539693222 | CQ9: 15.38063489 | CR9: 0.06883872529 | CS9: 15.75963489 | CT9: 0.09826708554 | CU9: 16.91763489 | CV9: 0.2803585206 | CW9: =IF(MOD(ROW($CW9)-7,oBlockAvg)=0,AVERAGE(INDIRECT(ADDRESS((INT((ROW($CW9)-7)/oBlockAvg)*oBlockAvg)+7,COLUMN(Calculation!JDGraph))&":"&ADDRESS(((INT((ROW($CW9)-7)/oBlockAvg)+1)*oBlockAvg)+6,COLUMN(Calculation!JDGraph)))),#N/A) ->  | CX9: =IF(MOD(ROW($CX9)-7,oBlockAvg)=0,AVERAGE(INDIRECT(ADDRESS((INT((ROW($CX9)-7)/oBlockAvg)*oBlockAvg)+7,75)&":"&ADDRESS(((INT((ROW($CX9)-7)/oBlockAvg)+1)*oBlockAvg)+6,75))),#N/A) ->  | CY9: =IF(MOD(ROW($CY9)-7,oBlockAvg)=0,STDEV(INDIRECT(ADDRESS((INT((ROW($CY9)-7)/oBlockAvg)*oBlockAvg)+7,75)&":"&ADDRESS(((INT((ROW($CY9)-7)/oBlockAvg)+1)*oBlockAvg)+6,75)))/SQRT(COUNT(INDIRECT(ADDRESS((INT((ROW($CY9)-7)/oBlockAvg)*oBlockAvg)+7,75)&":"&ADDRESS(((INT((ROW($CY9)-7)/oBlockAvg)+1)*oBlockAvg)+6,75)))),#N/A) -> 

Sheet CalcAAVSO
B1: Image Data | AH1: Intermediate Calculations | BU1: Zero Point Calculations | BW1: Final Derived Calculations | CW1: Block Average Calculations
AK2: Include | AL2: =IF(Results!$E$14="Yes",1,0) -> 0 | AN2: Include | AO2: =IF(Results!$E$15="Yes",1,0) -> 1 | AQ2: Include | AR2: =IF(Results!$E$16="Yes",1,0) -> 1 | AT2: Include | AU2: =IF(Results!$E$17="Yes",1,0) -> 1 | AW2: Include | AX2: =IF(Results!$E$18="Yes",1,0) -> 1 | AZ2: Include | BA2: =IF(Results!$E$19="Yes",1,0) -> 1 | BC2: Include | BD2: =IF(Results!$E$20="Yes",1,0) -> 1 | BF2: Include | BG2: =IF(Results!$E$21="Yes",1,0) -> 0 | BI2: Include | BJ2: =IF(Results!$E$22="Yes",1,0) -> 1 | BL2: Include | BM2: =IF(Results!$E$23="Yes",1,0) -> 0 | BO2: Include | BP2: =IF(Results!$E$24="Yes",1,0) -> 0 | BR2: Include | BS2: =IF(Results!$E$25="Yes",1,0) -> 0 | BU2: Comparisons | BV2: =SUM($AH$2:$BT$2) -> 7
G3: Exposure | H3: Var | J3: C1 | L3: C2 | N3: C3 | P3: C4 | R3: C5 | T3: C6 | V3: C7 | X3: C8 | Z3: C9 | AB3: C10 | AD3: C11 | AF3: C12 | AH3: Var | AK3: C1 | AN3: C2 | AQ3: C3 | AT3: C4 | AW3: C5 | AZ3: C6 | BC3: C7 | BF3: C8 | BI3: C9 | BL3: C10 | BO3: C11 | BR3: C12 | BW3: Var | BY3: C1 | CA3: C2 | CC3: C3 | CE3: C4 | CG3: C5 | CI3: C6 | CK3: C7 | CM3: C8 | CO3: C9 | CQ3: C10 | CS3: C11 | CU3: C12 | CW3: Var
B4: Image Name | C4: Date | D4: Time | E4: Julian Date | F4: ="JD-"&oJDOffset -> JD-2453000 | G4: Length | H4: InstMag | I4: Error | J4: InstMag | K4: Error | L4: InstMag | M4: Error | N4: InstMag | O4: Error | P4: InstMag | Q4: Error | R4: InstMag | S4: Error | T4: InstMag | U4: Error | V4: InstMag | W4: Error | X4: InstMag | Y4: Error | Z4: InstMag | AA4: Error | AB4: InstMag | AC4: Error | AD4: InstMag | AE4: Error | AF4: InstMag | AG4: Error | AH4: Magnitude | AI4: 1/SumSqErr | AJ4: Weight | AK4: Magnitude | AL4: 1/SumSqErr | AM4: Weight | AN4: Magnitude | AO4: 1/SumSqErr | AP4: Weight | AQ4: Magnitude | AR4: 1/SumSqErr | AS4: Weight | AT4: Magnitude | AU4: 1/SumSqErr | AV4: Weight | AW4: Magnitude | AX4: 1/SumSqErr | AY4: Weight | AZ4: Magnitude | BA4: 1/SumSqErr | BB4: Weight | BC4: Magnitude | BD4: 1/SumSqErr | BE4: Weight | BF4: Magnitude | BG4: 1/SumSqErr | BH4: Weight | BI4: Magnitude | BJ4: 1/SumSqErr | BK4: Weight | BL4: Magnitude | BM4: 1/SumSqErr | BN4: Weight | BO4: Magnitude | BP4: 1/SumSqErr | BQ4: Weight | BR4: Magnitude | BS4: 1/SumSqErr | BT4: Weight | BU4: Wt Mean ZP Mag | BV4: Wt ZP Std Err | BW4: Magnitude | BX4: Error | BY4: Magnitude | BZ4: Error | CA4: Magnitude | CB4: Error | CC4: Magnitude | CD4: Error | CE4: Magnitude | CF4: Error | CG4: Magnitude | CH4: Error | CI4: Magnitude | CJ4: Error | CK4: Magnitude | CL4: Error | CM4: Magnitude | CN4: Error | CO4: Magnitude | CP4: Error | CQ4: Magnitude | CR4: Error | CS4: Magnitude | CT4: Error | CU4: Magnitude | CV4: Error | CW4: Julian Date | CX4: Magnitude | CY4: Error
A5: Mean | B5: =IF(ISERROR(AVERAGE(B7:B9)),"Not Calc",AVERAGE(B7:B9)) -> Not Calc | C5: 2013-10-05 | D5: 19:59:57 | E5: 2456571.333 | F5: 3571.3333 | G5: 60 | H5: 18.336 | I5: 0.07226666667 | J5: 14.91033333 | K5: 0.003933333333 | L5: 15.606 | M5: 0.006733333333 | N5: 16.041 | O5: 0.009566666667 | P5: 16.40766667 | Q5: 0.01306666667 | R5: 16.69333333 | S5: 0.01666666667 | T5: 17.17133333 | U5: 0.02536666667 | V5: 17.44833333 | W5: 0.03253333333 | X5: 17.72033333 | Y5: 0.04176666667 | Z5: 18.05666667 | AA5: 0.05616666667 | AB5: 18.33533333 | AC5: 0.0721 | AD5: 18.68166667 | AE5: 0.09976666667 | AF5: 19.868 | AG5: 0.2949 | AH5: Not Calc | AI5: Not Calc | AJ5: 0 | AK5: 0 | AL5: 0 | AM5: 0 | AN5: -2.941 | AO5: 9147.550966 | AP5: 0.3690042779 | AQ5: -2.943 | AR5: 5223.397066 | AS5: 0.2106503354 | AT5: -2.968666667 | AU5: 4844.383232 | AV5: 0.19524866 | AW5: -2.953333333 | AX5: 2929.787917 | AY5: 0.1180932487 | AZ5: -2.947333333 | BA5: 1416.480617 | BB5: 0.05708192781 | BC5: -2.959333333 | BD5: 924.8263906 | BE5: 0.03726870153 | BF5: 0 | BG5: 0 | BH5: 0 | BI5: -2.944666667 | BJ5: 313.8473204 | BK5: 0.01265284864 | BL5: 0 | BM5: 0 | BN5: =IF(ISERROR(AVERAGE(BN7:BN9)),"Not Calc",AVERAGE(BN7:BN9)) -> 0 | BO5: 0 | BP5: 0 | BQ5: 0 | BR5: 0 | BS5: 0 | BT5: 0 | BU5: -2.949380024 | BV5: 0.00484595752 | BW5: 15.38661998 | BX5: 0.07243767864 | BY5: 11.96095331 | BZ5: 0.00627830552 | CA5: 12.65661998 | CB5: 0.008344676446 | CC5: 13.09161998 | CD5: 0.01077035686 | CE5: 13.45828664 | CF5: 0.01397545272 | CG5: 13.74395331 | CH5: 0.01738965524 | CI5: 14.22195331 | CJ5: 0.025847596 | CK5: 14.49895331 | CL5: 0.03291042084 | CM5: 14.77095331 | CN5: 0.04206039228 | CO5: 15.10728664 | CP5: 0.0563851531 | CQ5: 15.38595331 | CR5: 0.07227242122 | CS5: 15.73228664 | CT5: 0.09988969283 | CU5: 16.91861998 | CV5: 0.2949419874 | CW5: Not Calc | CX5: Not Calc | CY5: Not Calc
A6: StDev | B6: =IF(ISERROR(STDEV(B7:B9)),"Not Calc",STDEV(B7:B9)) -> Not Calc | C6: 00:00:00 | D6: 00:01:03 | E6: 0.0007299999706 | F6: 0.0007299999706 | G6: 0 | H6: 0.0305122926 | I6: 0.002173323108 | J6: 0.04805552344 | K6: 0.0001527525232 | L6: 0.03994996871 | M6: 0.0002081665999 | N6: 0.0405092582 | O6: 0.0003511884584 | P6: 0.03652852766 | Q6: 0.0004509249753 | R6: 0.02702468008 | S6: 0.0005507570547 | T6: 0.03347138081 | U6: 0.0009291573243 | V6: 0.03700450423 | W6: 0.00105039675 | X6: 0.05460158728 | Y6: 0.002281081615 | Z6: 0.02886751346 | AA6: 0.001514375559 | AB6: 0.04005413004 | AC6: 0.003064310689 | AD6: 0.03139001965 | AE6: 0.003329164059 | AF6: 0.08545759182 | AG6: 0.0251149358 | AH6: Not Calc | AI6: Not Calc | AJ6: 0 | AK6: 0 | AL6: 0 | AM6: 0 | AN6: 0.03994996871 | AO6: 235.4914226 | AP6: 0.006056709167 | AQ6: 0.0405092582 | AR6: 183.6175594 | AS6: 0.001171734347 | AT6: 0.03652852766 | AU6: 277.3478839 | AV6: 0.003213584871 | AW6: 0.02702468008 | AX6: 157.9024497 | AY6: 0.001555217247 | AZ6: 0.03347138081 | BA6: 92.58847782 | BB6: 0.001732728952 | BC6: 0.03700450423 | BD6: 58.23068175 | BE6: 0.0008526310504 | BF6: 0 | BG6: 0 | BH6: 0 | BI6: 0.02886751346 | BJ6: 16.37895828 | BK6: 0.0003143801571 | BL6: 0 | BM6: 0 | BN6: =IF(ISERROR(STDEV(BN7:BN9)),"Not Calc",STDEV(BN7:BN9)) -> 0 | BO6: 0 | BP6: 0 | BQ6: 0 | BR6: 0 | BS6: 0 | BT6: 0 | BU6: 0.03666083062 | BV6: 0.001244080569 | BW6: 0.01312431557 | BX6: 0.002092071508 | BY6: 0.01140604436 | BZ6: 0.0009364894999 | CA6: 0.006888429701 | CB6: 0.0006101273669 | CC6: 0.004128887474 | CD6: 0.0004204908506 | CE6: 0.003650109626 | CF6: 0.0003358195376 | CG6: 0.01016582972 | CH6: 0.0003775302499 | CI6: 0.01286858189 | CJ6: 0.0008308817306 | CK6: 0.001677915266 | CL6: 0.0009268190418 | CM6: 0.03532216943 | CN6: 0.002245616915 | CO6: 0.02028043522 | CP6: 0.001476298635 | CQ6: 0.03075362066 | CR6: 0.002970419233 | CS6: 0.02720724614 | CT6: 0.003318371861 | CU6: 0.06212055427 | CV6: 0.02510744534 | CW6: Not Calc | CX6: Not Calc | CY6: Not Calc
B7: Autosave Image -001V-DF.fit | C7: 2013-10-05 | D7: 19:58:54 | E7: 2456571.333 | F7: =E7-oJDOffset -> 3571.33257 | G7: 60 | H7: 18.357 | I7: 0.0739 | J7: 14.957 | K7: 0.0041 | L7: 15.64 | M7: 0.0069 | N7: 16.081 | O7: 0.0099 | P7: 16.445 | Q7: 0.0135 | R7: 16.721 | S7: 0.0172 | T7: 17.209 | U7: 0.0264 | V7: 17.485 | W7: 0.0336 | X7: 17.783 | Y7: 0.0444 | Z7: 18.09 | AA7: 0.0579 | AB7: 18.343 | AC7: 0.0734 | AD7: 18.717 | AE7: 0.1036 | AF7: 19.966 | AG7: 0.3239 | AH7: Blank | AI7: Blank | AJ7: 0 | AK7: =(Results!$F$14-$J7)*$AL$2 -> 0 | AL7: =(1/SUMSQ(Results!$G$14,$K7))*$AL$2 -> 0 | AM7: =$AL7/SUM($AL7,$AO7,$AR7,$AU7,$AX7,$BA7,$BD7,$BG7,$BJ7,$BM7,$BP7,$BS7) -> 0 | AN7: =(Results!$F$15-$L7)*$AO$2 -> -2.975 | AO7: =(1/SUMSQ(Results!$G$15,$M7))*$AO$2 -> 8959.77063 | AP7: =$AO7/SUM($AL7,$AO7,$AR7,$AU7,$AX7,$BA7,$BD7,$BG7,$BJ7,$BM7,$BP7,$BS7) -> 0.3757226187 | AQ7: =(Results!$F$16-$N7)*$AR$2 -> -2.983 | AR7: =(1/SUMSQ(Results!$G$16,$O7))*$AR$2 -> 5050.249987 | AS7: =$AR7/SUM($AL7,$AO7,$AR7,$AU7,$AX7,$BA7,$BD7,$BG7,$BJ7,$BM7,$BP7,$BS7) -> 0.2117792105 | AT7: =(Results!$F$17-$P7)*$AU$2 -> -3.006 | AU7: =(1/SUMSQ(Results!$G$17,$Q7))*$AU$2 -> 4581.901489 | AV7: =$AU7/SUM($AL7,$AO7,$AR7,$AU7,$AX7,$BA7,$BD7,$BG7,$BJ7,$BM7,$BP7,$BS7) -> 0.1921392965 | AW7: =(Results!$F$18-$R7)*$AX$2 -> -2.981 | AX7: =(1/SUMSQ(Results!$G$18,$S7))*$AX$2 -> 2779.012895 | AY7: =$AX7/SUM($AL7,$AO7,$AR7,$AU7,$AX7,$BA7,$BD7,$BG7,$BJ7,$BM7,$BP7,$BS7) -> 0.1165362424 | AZ7: =(Results!$F$19-$T7)*$BA$2 -> -2.985 | BA7: =(1/SUMSQ(Results!$G$19,$U7))*$BA$2 -> 1314.129521 | BB7: =$BA7/SUM($AL7,$AO7,$AR7,$AU7,$AX7,$BA7,$BD7,$BG7,$BJ7,$BM7,$BP7,$BS7) -> 0.0551072349 | BC7: =(Results!$F$20-$V7)*$BD$2 -> -2.996 | BD7: =(1/SUMSQ(Results!$G$20,$W7))*$BD$2 -> 866.581164 | BE7: =$BD7/SUM($AL7,$AO7,$AR7,$AU7,$AX7,$BA7,$BD7,$BG7,$BJ7,$BM7,$BP7,$BS7) -> 0.03633956244 | BF7: =(Results!$F$21-$X7)*$BG$2 -> 0 | BG7: =(1/SUMSQ(Results!$G$21,$Y7))*$BG$2 -> 0 | BH7: =$BG7/SUM($AL7,$AO7,$AR7,$AU7,$AX7,$BA7,$BD7,$BG7,$BJ7,$BM7,$BP7,$BS7) -> 0 | BI7: =(Results!$F$22-$Z7)*$BJ$2 -> -2.978 | BJ7: =(1/SUMSQ(Results!$G$22,$AA7))*$BJ$2 -> 295.1236716 | BK7: =$BJ7/SUM($AL7,$AO7,$AR7,$AU7,$AX7,$BA7,$BD7,$BG7,$BJ7,$BM7,$BP7,$BS7) -> 0.01237583453 | BL7: =(Results!$F$23-$AB7)*$BM$2 -> 0 | BM7: =(1/SUMSQ(Results!$G$23,$AC7))*$BM$2 -> 0 | BN7: =$BM7/SUM($AL7,$AO7,$AR7,$AU7,$AX7,$BA7,$BD7,$BG7,$BJ7,$BM7,$BP7,$BS7) -> 0 | BO7: =(Results!$F$24-$AD7)*$BP$2 -> 0 | BP7: =(1/SUMSQ(Results!$G$24,$AE7))*$BP$2 -> 0 | BQ7: =$BP7/SUM($AL7,$AO7,$AR7,$AU7,$AX7,$BA7,$BD7,$BG7,$BJ7,$BM7,$BP7,$BS7) -> 0 | BR7: =(Results!$F$25-$AF7)*$BS$2 -> 0 | BS7: =(1/SUMSQ(Results!$G$25,$AG7))*$BS$2 -> 0 | BT7: =$BS7/SUM($AL7,$AO7,$AR7,$AU7,$AX7,$BA7,$BD7,$BG7,$BJ7,$BM7,$BP7,$BS7) -> 0 | BU7: =SUM($AK7*$AM7,$AN7*$AP7,$AQ7*$AS7,$AT7*$AV7,$AW7*$AY7,$AZ7*$BB7,$BC7*$BE7,$BF7*$BH7,$BI7*$BK7,$BL7*$BN7,$BO7*$BQ7,$BR7*$BT7) -> -2.9847011 | BV7: =IF($BV$2>1,SQRT(SUM((($AK7-$BU7)^2)*$AM7,(($AN7-$BU7)^2)*$AP7,(($AQ7-$BU7)^2)*$AS7,(($AT7-$BU7)^2)*$AV7,(($AW7-$BU7)^2)*$AY7,(($AZ7-$BU7)^2)*$BB7,(($BC7-$BU7)^2)*$BE7,(($BF7-$BU7)^2)*$BH7,(($BI7-$BU7)^2)*$BK7,(($BL7-$BU7)^2)*$BN7,(($BO7-$BU7)^2)*$BQ7,(($BR7-$BU7)^2)*$BT7)/(IF($BV$2=1,1,$BV$2-1))),1/SQRT(SUM($AL7,$AO7,$AR7,$AU7,$AX7,$BA7,$BD7,$BG7,$BJ7,$BM7,$BP7,$BS7))) -> 0.00465352107 | BW7: =$H7+$BU7 -> 15.3722989 | BX7: =SQRT(SUMSQ($I7,$BV7)) -> 0.07404637235 | BY7: =$J7+$BU7 -> 11.9722989 | BZ7: =SQRT(SUMSQ($K7,$BV7)) -> 0.006202036629 | CA7: =$L7+$BU7 -> 12.6552989 | CB7: =SQRT(SUMSQ($M7,$BV7)) -> 0.008322575223 | CC7: =$N7+$BU7 -> 13.0962989 | CD7: =SQRT(SUMSQ($O7,$BV7)) -> 0.01093916168 | CE7: =$P7+$BU7 -> 13.4602989 | CF7: =SQRT(SUMSQ($Q7,$BV7)) -> 0.01427953985 | CG7: =$R7+$BU7 -> 13.7362989 | CH7: =SQRT(SUMSQ($S7,$BV7)) -> 0.01781839663 | CI7: =$T7+$BU7 -> 14.2242989 | CJ7: =SQRT(SUMSQ($U7,$BV7)) -> 0.02680700017 | CK7: =$V7+$BU7 -> 14.5002989 | CL7: =SQRT(SUMSQ($W7,$BV7)) -> 0.03392072019 | CM7: =$X7+$BU7 -> 14.7982989 | CN7: =SQRT(SUMSQ($Y7,$BV7)) -> 0.04464319946 | CO7: =$Z7+$BU7 -> 15.1052989 | CP7: =SQRT(SUMSQ($AA7,$BV7)) -> 0.05808670466 | CQ7: =$AB7+$BU7 -> 15.3582989 | CR7: =SQRT(SUMSQ($AC7,$BV7)) -> 0.07354736745 | CS7: =$AD7+$BU7 -> 15.7322989 | CT7: =SQRT(SUMSQ($AE7,$BV7)) -> 0.1037044611 | CU7: =$AF7+$BU7 -> 16.9812989 | CV7: =SQRT(SUMSQ($AG7,$BV7)) -> 0.3239334272 | CW7: =IF(MOD(ROW($CW7)-7,oBlockAvg)=0,AVERAGE(INDIRECT(ADDRESS((INT((ROW($CW7)-7)/oBlockAvg)*oBlockAvg)+7,COLUMN(Calculation!JDGraph))&":"&ADDRESS(((INT((ROW($CW7)-7)/oBlockAvg)+1)*oBlockAvg)+6,COLUMN(Calculation!JDGraph)))),#N/A) -> 3571.3333 | CX7: =IF(MOD(ROW($CX7)-7,oBlockAvg)=0,AVERAGE(INDIRECT(ADDRESS((INT((ROW($CX7)-7)/oBlockAvg)*oBlockAvg)+7,75)&":"&ADDRESS(((INT((ROW($CX7)-7)/oBlockAvg)+1)*oBlockAvg)+6,75))),#N/A) -> 15.38661998 | CY7: =IF(MOD(ROW($CY7)-7,oBlockAvg)=0,STDEV(INDIRECT(ADDRESS((INT((ROW($CY7)-7)/oBlockAvg)*oBlockAvg)+7,75)&":"&ADDRESS(((INT((ROW($CY7)-7)/oBlockAvg)+1)*oBlockAvg)+6,75)))/SQRT(COUNT(INDIRECT(ADDRESS((INT((ROW($CY7)-7)/oBlockAvg)*oBlockAvg)+7,75)&":"&ADDRESS(((INT((ROW($CY7)-7)/oBlockAvg)+1)*oBlockAvg)+6,75)))),#N/A) -> 0.007577327129
B8: Autosave Image -002V-DF.fit | C8: 2013-10-05 | D8: 19:59:57 | E8: 2456571.333 | F8: =E8-oJDOffset -> 3571.3333 | G8: 60 | H8: 18.35 | I8: 0.0731 | J8: 14.913 | K8: 0.0039 | L8: 15.616 | M8: 0.0068 | N8: 16.042 | O8: 0.0096 | P8: 16.406 | Q8: 0.0131 | R8: 16.692 | S8: 0.0167 | T8: 17.16 | U8: 0.0251 | V8: 17.449 | W8: 0.0325 | X8: 17.683 | Y8: 0.0404 | Z8: 18.04 | AA8: 0.0555 | AB8: 18.371 | AC8: 0.0743 | AD8: 18.657 | AE8: 0.0976 | AF8: 19.809 | AG8: 0.2805 | AH8: Blank | AI8: Blank | AJ8: 0 | AK8: =(Results!$F$14-$J8)*$AL$2 -> 0 | AL8: =(1/SUMSQ(Results!$G$14,$K8))*$AL$2 -> 0 | AM8: =$AL8/SUM($AL8,$AO8,$AR8,$AU8,$AX8,$BA8,$BD8,$BG8,$BJ8,$BM8,$BP8,$BS8) -> 0 | AN8: =(Results!$F$15-$L8)*$AO$2 -> -2.951 | AO8: =(1/SUMSQ(Results!$G$15,$M8))*$AO$2 -> 9071.117562 | AP8: =$AO8/SUM($AL8,$AO8,$AR8,$AU8,$AX8,$BA8,$BD8,$BG8,$BJ8,$BM8,$BP8,$BS8) -> 0.367327858 | AQ8: =(Results!$F$16-$N8)*$AR$2 -> -2.944 | AR8: =(1/SUMSQ(Results!$G$16,$O8))*$AR$2 -> 5203.996669 | AS8: =$AR8/SUM($AL8,$AO8,$AR8,$AU8,$AX8,$BA8,$BD8,$BG8,$BJ8,$BM8,$BP8,$BS8) -> 0.210731802 | AT8: =(Results!$F$17-$P8)*$AU$2 -> -2.967 | AU8: =(1/SUMSQ(Results!$G$17,$Q8))*$AU$2 -> 4816.723665 | AV8: =$AU8/SUM($AL8,$AO8,$AR8,$AU8,$AX8,$BA8,$BD8,$BG8,$BJ8,$BM8,$BP8,$BS8) -> 0.1950494825 | AW8: =(Results!$F$18-$R8)*$AX$2 -> -2.952 | AX8: =(1/SUMSQ(Results!$G$18,$S8))*$AX$2 -> 2916.38718 | AY8: =$AX8/SUM($AL8,$AO8,$AR8,$AU8,$AX8,$BA8,$BD8,$BG8,$BJ8,$BM8,$BP8,$BS8) -> 0.118096833 | AZ8: =(Results!$F$19-$T8)*$BA$2 -> -2.936 | BA8: =(1/SUMSQ(Results!$G$19,$U8))*$BA$2 -> 1440.901428 | BB8: =$BA8/SUM($AL8,$AO8,$AR8,$AU8,$AX8,$BA8,$BD8,$BG8,$BJ8,$BM8,$BP8,$BS8) -> 0.05834818384 | BC8: =(Results!$F$20-$V8)*$BD$2 -> -2.96 | BD8: =(1/SUMSQ(Results!$G$20,$W8))*$BD$2 -> 924.8554913 | BE8: =$BD8/SUM($AL8,$AO8,$AR8,$AU8,$AX8,$BA8,$BD8,$BG8,$BJ8,$BM8,$BP8,$BS8) -> 0.03745130457 | BF8: =(Results!$F$21-$X8)*$BG$2 -> 0 | BG8: =(1/SUMSQ(Results!$G$21,$Y8))*$BG$2 -> 0 | BH8: =$BG8/SUM($AL8,$AO8,$AR8,$AU8,$AX8,$BA8,$BD8,$BG8,$BJ8,$BM8,$BP8,$BS8) -> 0 | BI8: =(Results!$F$22-$Z8)*$BJ$2 -> -2.928 | BJ8: =(1/SUMSQ(Results!$G$22,$AA8))*$BJ$2 -> 320.8985158 | BK8: =$BJ8/SUM($AL8,$AO8,$AR8,$AU8,$AX8,$BA8,$BD8,$BG8,$BJ8,$BM8,$BP8,$BS8) -> 0.01299453608 | BL8: =(Results!$F$23-$AB8)*$BM$2 -> 0 | BM8: =(1/SUMSQ(Results!$G$23,$AC8))*$BM$2 -> 0 | BN8: =$BM8/SUM($AL8,$AO8,$AR8,$AU8,$AX8,$BA8,$BD8,$BG8,$BJ8,$BM8,$BP8,$BS8) -> 0 | BO8: =(Results!$F$24-$AD8)*$BP$2 -> 0 | BP8: =(1/SUMSQ(Results!$G$24,$AE8))*$BP$2 -> 0 | BQ8: =$BP8/SUM($AL8,$AO8,$AR8,$AU8,$AX8,$BA8,$BD8,$BG8,$BJ8,$BM8,$BP8,$BS8) -> 0 | BR8: =(Results!$F$25-$AF8)*$BS$2 -> 0 | BS8: =(1/SUMSQ(Results!$G$25,$AG8))*$BS$2 -> 0 | BT8: =$BS8/SUM($AL8,$AO8,$AR8,$AU8,$AX8,$BA8,$BD8,$BG8,$BJ8,$BM8,$BP8,$BS8) -> 0 | BU8: =SUM($AK8*$AM8,$AN8*$AP8,$AQ8*$AS8,$AT8*$AV8,$AW8*$AY8,$AZ8*$BB8,$BC8*$BE8,$BF8*$BH8,$BI8*$BK8,$BL8*$BN8,$BO8*$BQ8,$BR8*$BT8) -> -2.951926731 | BV8: =IF($BV$2>1,SQRT(SUM((($AK8-$BU8)^2)*$AM8,(($AN8-$BU8)^2)*$AP8,(($AQ8-$BU8)^2)*$AS8,(($AT8-$BU8)^2)*$AV8,(($AW8-$BU8)^2)*$AY8,(($AZ8-$BU8)^2)*$BB8,(($BC8-$BU8)^2)*$BE8,(($BF8-$BU8)^2)*$BH8,(($BI8-$BU8)^2)*$BK8,(($BL8-$BU8)^2)*$BN8,(($BO8-$BU8)^2)*$BQ8,(($BR8-$BU8)^2)*$BT8)/(IF($BV$2=1,1,$BV$2-1))),1/SQRT(SUM($AL8,$AO8,$AR8,$AU8,$AX8,$BA8,$BD8,$BG8,$BJ8,$BM8,$BP8,$BS8))) -> 0.003709308105 | BW8: =$H8+$BU8 -> 15.39807327 | BX8: =SQRT(SUMSQ($I8,$BV8)) -> 0.07319405008 | BY8: =$J8+$BU8 -> 11.96107327 | BZ8: =SQRT(SUMSQ($K8,$BV8)) -> 0.005382282658 | CA8: =$L8+$BU8 -> 12.66407327 | CB8: =SQRT(SUMSQ($M8,$BV8)) -> 0.007745899987 | CC8: =$N8+$BU8 -> 13.09007327 | CD8: =SQRT(SUMSQ($O8,$BV8)) -> 0.01029169406 | CE8: =$P8+$BU8 -> 13.45407327 | CF8: =SQRT(SUMSQ($Q8,$BV8)) -> 0.01361502724 | CG8: =$R8+$BU8 -> 13.74007327 | CH8: =SQRT(SUMSQ($S8,$BV8)) -> 0.0171069859 | CI8: =$T8+$BU8 -> 14.20807327 | CJ8: =SQRT(SUMSQ($U8,$BV8)) -> 0.02537260268 | CK8: =$V8+$BU8 -> 14.49707327 | CL8: =SQRT(SUMSQ($W8,$BV8)) -> 0.03271099153 | CM8: =$X8+$BU8 -> 14.73107327 | CN8: =SQRT(SUMSQ($Y8,$BV8)) -> 0.04056992687 | CO8: =$Z8+$BU8 -> 15.08807327 | CP8: =SQRT(SUMSQ($AA8,$BV8)) -> 0.05562381654 | CQ8: =$AB8+$BU8 -> 15.41907327 | CR8: =SQRT(SUMSQ($AC8,$BV8)) -> 0.074392533 | CS8: =$AD8+$BU8 -> 15.70507327 | CT8: =SQRT(SUMSQ($AE8,$BV8)) -> 0.09767046108 | CU8: =$AF8+$BU8 -> 16.85707327 | CV8: =SQRT(SUMSQ($AG8,$BV8)) -> 0.2805245247 | CW8: =IF(MOD(ROW($CW8)-7,oBlockAvg)=0,AVERAGE(INDIRECT(ADDRESS((INT((ROW($CW8)-7)/oBlockAvg)*oBlockAvg)+7,COLUMN(Calculation!JDGraph))&":"&ADDRESS(((INT((ROW($CW8)-7)/oBlockAvg)+1)*oBlockAvg)+6,COLUMN(Calculation!JDGraph)))),#N/A) ->  | CX8: =IF(MOD(ROW($CX8)-7,oBlockAvg)=0,AVERAGE(INDIRECT(ADDRESS((INT((ROW($CX8)-7)/oBlockAvg)*oBlockAvg)+7,75)&":"&ADDRESS(((INT((ROW($CX8)-7)/oBlockAvg)+1)*oBlockAvg)+6,75))),#N/A) ->  | CY8: =IF(MOD(ROW($CY8)-7,oBlockAvg)=0,STDEV(INDIRECT(ADDRESS((INT((ROW($CY8)-7)/oBlockAvg)*oBlockAvg)+7,75)&":"&ADDRESS(((INT((ROW($CY8)-7)/oBlockAvg)+1)*oBlockAvg)+6,75)))/SQRT(COUNT(INDIRECT(ADDRESS((INT((ROW($CY8)-7)/oBlockAvg)*oBlockAvg)+7,75)&":"&ADDRESS(((INT((ROW($CY8)-7)/oBlockAvg)+1)*oBlockAvg)+6,75)))),#N/A) -> 
B9: Autosave Image -003V-DF.fit | C9: 2013-10-05 | D9: 20:01:00 | E9: 2456571.334 | F9: =E9-oJDOffset -> 3571.33403 | G9: 60 | H9: 18.301 | I9: 0.0698 | J9: 14.861 | K9: 0.0038 | L9: 15.562 | M9: 0.0065 | N9: 16 | O9: 0.0092 | P9: 16.372 | Q9: 0.0126 | R9: 16.667 | S9: 0.0161 | T9: 17.145 | U9: 0.0246 | V9: 17.411 | W9: 0.0315 | X9: 17.695 | Y9: 0.0405 | Z9: 18.04 | AA9: 0.0551 | AB9: 18.292 | AC9: 0.0686 | AD9: 18.671 | AE9: 0.0981 | AF9: 19.829 | AG9: 0.2803 | AH9: Blank | AI9: Blank | AJ9: 0 | AK9: =(Results!$F$14-$J9)*$AL$2 -> 0 | AL9: =(1/SUMSQ(Results!$G$14,$K9))*$AL$2 -> 0 | AM9: 0 | AN9: =(Results!$F$15-$L9)*$AO$2 -> -2.897 | AO9: =(1/SUMSQ(Results!$G$15,$M9))*$AO$2 -> 9411.764706 | AP9: 0.3639623571 | AQ9: =(Results!$F$16-$N9)*$AR$2 -> -2.902 | AR9: =(1/SUMSQ(Results!$G$16,$O9))*$AR$2 -> 5415.944541 | AS9: 0.2094399937 | AT9: =(Results!$F$17-$P9)*$AU$2 -> -2.933 | AU9: =(1/SUMSQ(Results!$G$17,$Q9))*$AU$2 -> 5134.524543 | AV9: 0.1985572009 | AW9: =(Results!$F$18-$R9)*$AX$2 -> -2.927 | AX9: =(1/SUMSQ(Results!$G$18,$S9))*$AX$2 -> 3093.963677 | AY9: 0.1196466707 | AZ9: =(Results!$F$19-$T9)*$BA$2 -> -2.921 | BA9: =(1/SUMSQ(Results!$G$19,$U9))*$BA$2 -> 1494.410903 | BB9: 0.0577903647 | BC9: =(Results!$F$20-$V9)*$BD$2 -> -2.922 | BD9: =(1/SUMSQ(Results!$G$20,$W9))*$BD$2 -> 983.0425166 | BE9: 0.03801523759 | BF9: =(Results!$F$21-$X9)*$BG$2 -> 0 | BG9: =(1/SUMSQ(Results!$G$21,$Y9))*$BG$2 -> 0 | BH9: 0 | BI9: =(Results!$F$22-$Z9)*$BJ$2 -> -2.928 | BJ9: =(1/SUMSQ(Results!$G$22,$AA9))*$BJ$2 -> 325.5197737 | BK9: 0.01258817531 | BL9: =(Results!$F$23-$AB9)*$BM$2 -> 0 | BM9: =(1/SUMSQ(Results!$G$23,$AC9))*$BM$2 -> 0 | BN9: 0 | BO9: =(Results!$F$24-$AD9)*$BP$2 -> 0 | BP9: =(1/SUMSQ(Results!$G$24,$AE9))*$BP$2 -> 0 | BQ9: 0 | BR9: =(Results!$F$25-$AF9)*$BS$2 -> 0 | BS9: =(1/SUMSQ(Results!$G$25,$AG9))*$BS$2 -> 0 | BT9: 0 | BU9: -2.911512242 | BV9: 0.006175043387 | BW9: 15.38948776 | BX9: 0.07007261349 | BY9: 11.94948776 | BZ9: 0.007250597274 | CA9: 12.65048776 | CB9: 0.008965554128 | CC9: 13.08848776 | CD9: 0.01108021484 | CE9: 13.46048776 | CF9: 0.01403179108 | CG9: 13.75548776 | CH9: 0.01724358318 | CI9: 14.23348776 | CJ9: 0.02536318515 | CK9: 14.49948776 | CL9: 0.03209955079 | CM9: 14.78348776 | CN9: 0.04096805049 | CO9: 15.12848776 | CP9: 0.0554449381 | CQ9: 15.38048776 | CR9: 0.0688773632 | CS9: 15.75948776 | CT9: 0.09829415629 | CU9: 16.91748776 | CV9: 0.2803680102 | CW9: =IF(MOD(ROW($CW9)-7,oBlockAvg)=0,AVERAGE(INDIRECT(ADDRESS((INT((ROW($CW9)-7)/oBlockAvg)*oBlockAvg)+7,COLUMN(Calculation!JDGraph))&":"&ADDRESS(((INT((ROW($CW9)-7)/oBlockAvg)+1)*oBlockAvg)+6,COLUMN(Calculation!JDGraph)))),#N/A) ->  | CX9: =IF(MOD(ROW($CX9)-7,oBlockAvg)=0,AVERAGE(INDIRECT(ADDRESS((INT((ROW($CX9)-7)/oBlockAvg)*oBlockAvg)+7,75)&":"&ADDRESS(((INT((ROW($CX9)-7)/oBlockAvg)+1)*oBlockAvg)+6,75))),#N/A) ->  | CY9: =IF(MOD(ROW($CY9)-7,oBlockAvg)=0,STDEV(INDIRECT(ADDRESS((INT((ROW($CY9)-7)/oBlockAvg)*oBlockAvg)+7,75)&":"&ADDRESS(((INT((ROW($CY9)-7)/oBlockAvg)+1)*oBlockAvg)+6,75)))/SQRT(COUNT(INDIRECT(ADDRESS((INT((ROW($CY9)-7)/oBlockAvg)*oBlockAvg)+7,75)&":"&ADDRESS(((INT((ROW($CY9)-7)/oBlockAvg)+1)*oBlockAvg)+6,75)))),#N/A) -> 

Sheet Data charts
D1: =oVariableID -> VW Vul | K1: =oVariableID -> VW Vul | P1: Magnitude Axis Minimum & Maximum
P2: For Middle Left, Bottom Left and Middle Right Charts
P3: Bypass Automatic Min/Max | Q3: Yes
P4: Round Min/Max to Nearest | Q4: 1
P5: (No need to change settings unless magnitude axis is causing problems)
K34: =oVariableID&" Block Average" -> VW Vul Block Average

Sheet Data charts AAVSO
D1: Variable and Check Star | K1: =cAAVSO -> Variable and Check Star

Sheet BAAVSS
A1: File Format | B1: CCD/DSLR v2.01
A2: Observation Method | B2: =uObservationMethod -> CCD
A3: Variable | B3: =oVariableID -> VW Vul
A4: Chart ID | B4: =oChartID -> AAVSO 12662FGO
A5: Observer code | B5: =uObserverCode -> ABC
A6: Location | B6: =uLatDeg&" "&uLatMin&" "&uLatSec&uLatHem&" "&uLongDeg&" "&uLongMin&" "&uLongSec&uLongHem&" H"&uHeight&"m" -> 51 1 0N 1 1 0W H10m
A7: Telescope | B7: =uTelescopeCode -> Meade 14 LX200R on AP1200
A8: Camera | B8: =uCCDCode -> SXVR-H694
A9: Magnitude type | B9: Instrumental
A10: Timing uncertainty | B10: =uTimingUncertainty -> 30
A11: Phot star rad (arcsec) | B11: =((uPixelSize1+uPixelSize2)/2)*oStarAp -> 7.55
A12: Phot inner ann (arcsec) | B12: =((uPixelSize1+uPixelSize2)/2)*oSkyInn -> 11.325
A13: Phot outer ann (arcsec) | B13: =((uPixelSize1+uPixelSize2)/2)*oSkyOut -> 15.1
A14: Photometry software | B14: AIP4Win v2 - Ensemble Photometry
A15: Analysis software | B15: ="VSS CCD Photometry Spreadsheet "&fVersion -> VSS CCD Photometry Spreadsheet 2.04
A16: Comment | B16: =IF(oComment="","",oComment) -> 
A18: JulianDate | B18: Filter | C18: VarAbsMag | D18: VarAbsErr | E18: VarMag | F18: VarErr | G18: ExpLen | H18: FileName | I18: CmpStar | J18: RefMag | K18: RefErr | L18: CMMag | M18: CmpErr | N18: CmpStar | O18: RefMag | P18: RefErr | Q18: CMMag | R18: CmpErr | S18: CmpStar | T18: RefMag | U18: RefErr | V18: CMMag | W18: CmpErr | X18: CmpStar | Y18: RefMag | Z18: RefErr | AA18: CMMag | AB18: CmpErr | AC18: CmpStar | AD18: RefMag | AE18: RefErr | AF18: CMMag | AG18: CmpErr | AH18: CmpStar | AI18: RefMag | AJ18: RefErr | AK18: CMMag | AL18: CmpErr | AM18: CmpStar | AN18: RefMag | AO18: RefErr | AP18: CMMag | AQ18: CmpErr | AR18: CmpStar | AS18: RefMag | AT18: RefErr | AU18: CMMag | AV18: CmpErr
A19: 2456571.333 | B19: V | C19: 15.3726064 | D19: 0.07403651699 | E19: 18.357 | F19: 0.0739 | G19: 60 | H19: Autosave Image -001V-DF.fit | I19: 127 | J19: 12.665 | K19: 0.008 | L19: 15.64 | M19: 0.0069 | N19: 131 | O19: 13.098 | P19: 0.01 | Q19: 16.081 | R19: 0.0099 | S19: 134 | T19: 13.439 | U19: 0.006 | V19: 16.445 | W19: 0.0135 | X19: 137 | Y19: 13.74 | Z19: 0.008 | AA19: 16.721 | AB19: 0.0172 | AC19: 142 | AD19: 14.224 | AE19: 0.008 | AF19: 17.209 | AG19: 0.0264 | AH19: 145 | AI19: 14.489 | AJ19: 0.005 | AK19: 17.485 | AL19: 0.0336 | AM19: 151 | AN19: 15.112 | AO19: 0.006 | AP19: 18.09 | AQ19: 0.0579 | AR19: 154 | AS19: 15.399 | AT19: 0.011 | AU19: 18.343 | AV19: 0.0734
A20: 2456571.333 | B20: V | C20: 15.39793021 | D20: 0.07318283037 | E20: 18.35 | F20: 0.0731 | G20: 60 | H20: Autosave Image -002V-DF.fit | I20: 127 | J20: 12.665 | K20: 0.008 | L20: 15.616 | M20: 0.0068 | N20: 131 | O20: 13.098 | P20: 0.01 | Q20: 16.042 | R20: 0.0096 | S20: 134 | T20: 13.439 | U20: 0.006 | V20: 16.406 | W20: 0.0131 | X20: 137 | Y20: 13.74 | Z20: 0.008 | AA20: 16.692 | AB20: 0.0167 | AC20: 142 | AD20: 14.224 | AE20: 0.008 | AF20: 17.16 | AG20: 0.0251 | AH20: 145 | AI20: 14.489 | AJ20: 0.005 | AK20: 17.449 | AL20: 0.0325 | AM20: 151 | AN20: 15.112 | AO20: 0.006 | AP20: 18.04 | AQ20: 0.0555 | AR20: 154 | AS20: 15.399 | AT20: 0.011 | AU20: 18.371 | AV20: 0.0743
A21: 2456571.334 | B21: V | C21: 15.38963489 | D21: 0.070034635 | E21: 18.301 | F21: 0.0698 | G21: 60 | H21: Autosave Image -003V-DF.fit | I21: 127 | J21: 12.665 | K21: 0.008 | L21: 15.562 | M21: 0.0065 | N21: 131 | O21: 13.098 | P21: 0.01 | Q21: 16 | R21: 0.0092 | S21: 134 | T21: 13.439 | U21: 0.006 | V21: 16.372 | W21: 0.0126 | X21: 137 | Y21: 13.74 | Z21: 0.008 | AA21: 16.667 | AB21: 0.0161 | AC21: 142 | AD21: 14.224 | AE21: 0.008 | AF21: 17.145 | AG21: 0.0246 | AH21: 145 | AI21: 14.489 | AJ21: 0.005 | AK21: 17.411 | AL21: 0.0315 | AM21: 151 | AN21: 15.112 | AO21: 0.006 | AP21: 18.04 | AQ21: 0.0551 | AR21: 154 | AS21: 15.399 | AT21: 0.011 | AU21: 18.292 | AV21: 0.0686

Sheet AAVSO
A1: #TYPE=Extended
A2: ="#OBSCODE="&uAAVSOobservercode -> #OBSCODE=DEF
A3: ="#SOFTWARE="&"AIP4Winv2 BAAVSS Ss v"&fVersion -> #SOFTWARE=AIP4Winv2 BAAVSS Ss v2.04
A4: ="#DELIM=tab" -> #DELIM=tab
A5: ="#DATE=JD" -> #DATE=JD
A6: ="#OBSTYPE=CCD" -> #OBSTYPE=CCD
A7: #
A8: #NAME | B8: DATE | C8: MAG | D8: MERR | E8: FILT | F8: TRANS | G8: MTYPE | H8: CNAME | I8: CMAG | J8: KNAME | K8: KMAG | L8: AIRMASS | M8: GROUP | N8: CHART | O8: NOTES
A9: VW Vul | B9: 2456571.333 | C9: 15.3722989 | D9: 0.07404637235 | E9: V | F9: NO | G9: ABS | H9: ENSEMBLE | I9: na | J9: 154 | K9: 15.3582989 | L9: na | M9: na | N9: AAVSO 12662FGO | O9: na
A10: VW Vul | B10: 2456571.333 | C10: 15.39807327 | D10: 0.07319405008 | E10: V | F10: NO | G10: ABS | H10: ENSEMBLE | I10: na | J10: 154 | K10: 15.41907327 | L10: na | M10: na | N10: AAVSO 12662FGO | O10: na
A11: VW Vul | B11: 2456571.334 | C11: 15.38948776 | D11: 0.07007261349 | E11: V | F11: NO | G11: ABS | H11: ENSEMBLE | I11: na | J11: 154 | K11: 15.38048776 | L11: na | M11: na | N11: AAVSO 12662FGO | O11: na

Sheet Image
A1: Image of field identifying variable and comparison stars.

Sheet Data
A2: AIP4Win Multiple-Image Photometry Tool
A3: Ensemble Photometry Report
A4: AIP4Win Licensed to: | B4: Andrew Wilson
A5: AIP4Win v. | B5: 2.4.0
A6: Folder containing files: | B6: C:\Users\User\My Astronomy Images\Processed\Variable Stars\VW Vul\20131005
A7: Filename of first image: | B7: Autosave Image -001V-DF.fit
A8: Number of files selected: | B8: 3
A9: Star aperture radius: | B9: 10
A10: Sky annulus inner radius: | B10: 15
A11: Sky annulus outer radius: | B11: 20
A12: Star aperture pixels: | B12: 312
A13: Sky annulus pixels: | B13: 330
A14: Default integration time: | B14: 60
A15: Zero point: | B15: 25
A16: Gain [e/ADU]: | B16: 0.3
A17: Readout noise [e rms]: | B17: 5
A18: Dark current [e/sec/pix]: | B18: 0.001
A19: Time of observation:
A20: Date, time, exposure from | B20: FITS header
A21: First Image Date: | B21: 41552
A22: First Image Time: | B22: 0.8322222222
A23: First Exposure Time: | B23: 60 seconds
A24: Filter: | B24: Johnson V
A25: Clock time zone: | B25: 0 hours
A26: Offset (true-clock): | B26: 0 seconds
A27: Heliocentric correction: | B27: 0 seconds
A28: Julian Day (midexposure): ImageTime + (Exposure / 2)
A29: First Mid-exposure Date: | B29: 41552
A30: First Mid-exposure Time: | B30: 0.8325694444
A31: Stars selected in the first image
A32: Star | B32: Star_X | C32: Star_Y | D32: Integr | E32: Max_PV | F32: Sky_ADU | G32: Star_ADU | H32: Mag | I32: ±Sigma
A33: Var | B33: 621.834 | C33: 615.892 | D33: 60 | E33: 4428 | F33: 1571.985 | G33: 27238.7 | H33: 18.357 | I33: 0.0739
A34: C1 | B34: 985.013 | C34: 391.768 | D34: 60 | E34: 54484 | F34: 1583.551 | G34: 624054 | H34: 14.957 | I34: 0.0041
A35: C2 | B35: 532.015 | C35: 281.241 | D35: 60 | E35: 38080 | F35: 1582.245 | G35: 332852 | H35: 15.64 | I35: 0.0069
A36: C3 | B36: 638.917 | C36: 772.853 | D36: 60 | E36: 26348 | F36: 1573.89 | G36: 221666 | H36: 16.081 | I36: 0.0099
A37: C4 | B37: 572.865 | C37: 940.138 | D37: 60 | E37: 19661 | F37: 1579.076 | G37: 158561.4 | H37: 16.445 | I37: 0.0135
A38: C5 | B38: 308.999 | C38: 452.907 | D38: 60 | E38: 14993 | F38: 1579.378 | G38: 122920.7 | H38: 16.721 | I38: 0.0172
A39: C6 | B39: 402.432 | C39: 593.061 | D39: 60 | E39: 10452 | F39: 1573.012 | G39: 78407.2 | H39: 17.209 | I39: 0.0264
A40: C7 | B40: 1901-10-16T01:20:38.400 | C40: 632.747 | D40: 60 | E40: 8043 | F40: 1572.417 | G40: 60813.3 | H40: 17.485 | I40: 0.0336
A41: C8 | B41: 1901-11-20T05:21:07.200 | C41: 515.385 | D41: 60 | E41: 6258 | F41: 1582.148 | G41: 46230.2 | H41: 17.783 | I41: 0.0444
A42: C9 | B42: 1901-07-24T21:53:16.800 | C42: 428.732 | D42: 60 | E42: 5269 | F42: 1572.36 | G42: 34853.6 | H42: 18.09 | I42: 0.0579
A43: C10 | B43: 1901-03-10T11:02:24 | C43: 698.92 | D43: 60 | E43: 4332 | F43: 1570.299 | G43: 27611.2 | H43: 18.343 | I43: 0.0734
A44: C11 | B44: 1901-06-18T05:22:33.600 | C44: 636.395 | D44: 60 | E44: 3808 | F44: 1574.727 | G44: 19558.18 | H44: 18.717 | I44: 0.1036
A45: C12 | B45: 1901-11-03T19:22:04.800 | C45: 618.228 | D45: 60 | E45: 2401 | F45: 1576.406 | G45: 6190.5 | H45: 19.966 | I45: 0.3239
A46: Ens | F46: 1733718 | G46: 13.848 | H46: 0.0043
A47: -------------------------------------------------------------------
A48: Seq_# | B48: YYYY-MM-DD | C48: HH:MM:SS.sss | D48: Julian_Day | E48: Integr | F48: Filt | G48: V_Mag | H48: ±Sigma | I48: C1 | J48: ±Sigma | K48: C2 | L48: ±Sigma | M48: C3 | N48: ±Sigma | O48: C4 | P48: ±Sigma | Q48: C5 | R48: ±Sigma | S48: C6 | T48: ±Sigma | U48: C7 | V48: ±Sigma | W48: C8 | X48: ±Sigma | Y48: C9 | Z48: ±Sigma | AA48: C10 | AB48: ±Sigma | AC48: C11 | AD48: ±Sigma | AE48: C12 | AF48: ±Sigma | AG48: Sky_ADU | AH48: File_Name
A50: 1 | B50: 2013-10-05 | C50: 19:58:54 | D50: 2456571.333 | E50: 60 | F50: John | G50: 18.357 | H50: 0.0739 | I50: 14.957 | J50: 0.0041 | K50: 15.64 | L50: 0.0069 | M50: 16.081 | N50: 0.0099 | O50: 16.445 | P50: 0.0135 | Q50: 16.721 | R50: 0.0172 | S50: 17.209 | T50: 0.0264 | U50: 17.485 | V50: 0.0336 | W50: 17.783 | X50: 0.0444 | Y50: 18.09 | Z50: 0.0579 | AA50: 18.343 | AB50: 0.0734 | AC50: 18.717 | AD50: 0.1036 | AE50: 19.966 | AF50: 0.3239 | AG50: 1571.985 | AH50: Autosave Image -001V-DF.fit
A51: 2 | B51: 2013-10-05 | C51: 19:59:57 | D51: 2456571.333 | E51: 60 | F51: John | G51: 18.35 | H51: 0.0731 | I51: 14.913 | J51: 0.0039 | K51: 15.616 | L51: 0.0068 | M51: 16.042 | N51: 0.0096 | O51: 16.406 | P51: 0.0131 | Q51: 16.692 | R51: 0.0167 | S51: 17.16 | T51: 0.0251 | U51: 17.449 | V51: 0.0325 | W51: 17.683 | X51: 0.0404 | Y51: 18.04 | Z51: 0.0555 | AA51: 18.371 | AB51: 0.0743 | AC51: 18.657 | AD51: 0.0976 | AE51: 19.809 | AF51: 0.2805 | AG51: 1559.31 | AH51: Autosave Image -002V-DF.fit
A52: 3 | B52: 2013-10-05 | C52: 20:01:00 | D52: 2456571.334 | E52: 60 | F52: John | G52: 18.301 | H52: 0.0698 | I52: 14.861 | J52: 0.0038 | K52: 15.562 | L52: 0.0065 | M52: 16 | N52: 0.0092 | O52: 16.372 | P52: 0.0126 | Q52: 16.667 | R52: 0.0161 | S52: 17.145 | T52: 0.0246 | U52: 17.411 | V52: 0.0315 | W52: 17.695 | X52: 0.0405 | Y52: 18.04 | Z52: 0.0551 | AA52: 18.292 | AB52: 0.0686 | AC52: 18.671 | AD52: 0.0981 | AE52: 19.829 | AF52: 0.2803 | AG52: 1537.1 | AH52: Autosave Image -003V-DF.fit

Sheet Version Log
A1: Version | B1: Changes / Fixes | C1: Comment | D1: Completion Date | E1: Release Date
A2: 2.0 | B2: Complete re-write for ensemble photometry | D2: 2006-11-22 | E2: 2006-11-22
A3: 2.01Beta | B3: Modified prcImportFile to copy Import Photometry file data to existing Data sheet rather than replace existing data sheet. | C3: To enable VBA to work with Excel 2007 as well as previous versions. | D3: 2007-12-17 | E3: 2008-07-06
A4: 2.01Beta | B4: Tested spreadsheet with AIP4Win v2.1.10. | D4: 2007-12-23 | E4: 2008-07-06
A5: 2.01Beta2 | B5: Corrected "Individual Variable Measurements" table in Results sheet to be populated for all images, was previously missing calculations on the last image. | C5: Did not affect any other calculations, i.e. all final calculations were correct. | D5: 2007-12-23 | E5: 2008-07-06
A6: 2.01Beta3 | B6: Changes for AIP4Win v2.2 data file format changes. Changed prcAIPv2EnsRawData to fncAIPv2EnsRawData to allow data read check. Changed Magnitude data copy from starting at fixed column to search for V_Mag column as new Filt column inserted in AIP4Win data file. | C6: Calculations not affected. | D6: 2008-03-10 | E6: 2008-07-06
A7: 2.01Beta4 | B7: AAVSO output updated for new format. New CalcAAVSO sheet created for AAVSO version of calculation where Check star is not included. Results sheet modified to include row for AAVSO results and to allow a comparison to be used as a check star. | D7: 2008-06-01 | E7: 2008-07-06
A8: 2.01Beta5 | B8: AAVSO export not creating blank entry for NOTES field beyond row 17. Field set to single space. | D8: 2008-06-17 | E8: 2008-07-06
A9: 2.01Beta5 | B9: Filter codes changed to AAVSO codes. | C9: Simpler if both BAAVSS and AAVSO use the same filter codes. | D9: 2008-06-17 | E9: 2008-07-06
A10: 2.01Beta5 | B10: Modified VBA for AAVSO output so that when only one comparison is selected then the details of the comparison star are used in the CNAME and CMAG fields rather than ENSEMBLE and na. | C10: The CMAG ends up as the Chart magnitude for the comparison since this star is used to calculate the zero point for the image. | D10: 2008-06-17 | E10: 2008-07-06
A11: 2.01Beta6 | B11: Notes field in AAVSO output set to na. | D11: 2008-06-17 | E11: 2008-07-06
A12: 2.01Beta7 | B12: Fixed Charts so that Check star appears. | D12: 2008-06-17 | E12: 2008-07-06
A13: 2.01Beta8 | B13: Added VarAbsMag and VarAbsErr to BAAVSS output. Give the Variable Absolute (Original calculated by this spreadsheet) magnitude and errors. | D13: 2008-07-06 | E13: 2008-07-06
A14: 2.01 | B14: Release of all 2.01Beta changes. | D14: 2008-07-06 | E14: 2008-07-06
A15: 2.02 | B15: Updated filter list to keep in line with new AAVSO filters. | C15: To assist when merging database results in future the BAAVSS and AAVSO try to use the same filter codes. | D15: 2009-01-26 | E15: 2009-01-26
A16: 2.03 | B16: Changes to enable this photometry spreadsheet to be used for DSLR as well as CCD observations. Altered ObsvEqmt sheet so that it contains an Observation Method field and remove explicit references to CCD with Camera. Altered BAAVSS sheet to include the Observation Method field. | D16: 2013-05-05 | E16: 2013-05-06
A17: 2.03 | B17: Changes to aid future use in online submission. To sheet BAAVSS added a File Format field. | D17: 2013-05-05 | E17: 2013-05-06
A18: 2.03 | B18: Change for new online submission format. Replaced location code in BAAVSS sheet with location details. Disabled location code on ObsvEqmt sheet. In ObsvEqmt sheet replaced Telescope Code with Telescope Short Description. In BAAVSS sheet replaced Telescope Code with Telescope. | D18: 2013-05-06 | E18: 2013-05-06
A19: 2.04 | B19: Added optional Airmass to Results tab for use in AAVSO output. | D19: 2017-12-29 | E19: 2017-12-30
A20: 2.04 | B20: Added comment to Results tab. | D20: 2017-12-29 | E20: 2017-12-30
A21: 2.04 | B21: Added new AAVSO charts sheet, to show variable in comparison to the check star. | D21: 2013-09-21 | E21: 2017-12-30
A22: 2.04 | B22: In Results tab corrected headings M10 and N10 which showed Max and Min the wrong way round. | D22: 2013-11-21 | E22: 2017-12-30
A23: 2.04 | B23: Added filter VG for "Corrected Green Channel to Johnson V". | D23: 2013-12-21 | E23: 2017-12-30
A24: 2.04 | B24: Corrected format of CMAG column in AAVSO tab from Text to Number. | D24: 2014-05-24 | E24: 2017-12-30
